Workbook

Sheet Contenido
B14: Pontificia Universidad Javeriana
B15: Incremento en valores de matrícula y demás derechos pecuniarios - Anexo Sede Central
B17: Contenido
B18: Proyectos 2026
B19: Valores de Matrícula Pregrado 2025-2026
B20: Valores de Matrícula Posgrado 2025-2026
B21: Otros Conceptos 2025-2026

Sheet Valor de los proyectos 2026
A1: Volver al menú
C2: PONTIFICIA UNIVERSIDAD JAVERIANA
C3: INFORMACIÓN POR PROYECTOS
C4: SEDE CENTRAL (BOGOTÁ – CODIFICACIÓN SNIES 1701)
C5: Nota: Debido a que en el presupuesto de la Universidad se aplica el principio de unidad de caja, no es posible presentar discriminado el monto de la inversión según la fuente de los recursos.
C8: La numeración de las categorías de los proyectos de inversión corresponde a la registrada en la plantilla SNIES para tal fin.
G10: Fuente de los recursos
B11: Código Línea de inversión | C11: Proyecto | E11: Fecha de inicio del proyecto | F11: Fecha de finalización del proyecto | G11: Recursos propios | H11: Créditos nuevos | I11: Ingresos adicionales | J11: Otras fuentes | K11: Valor total del proyecto para 2026 (millones de pesos)
B12: 5 | C12: Desarrollo tecnológico (incluye inversiones en infraestructura tecnológica, equipos de cómputo, equipos médico-científicos y dotación bibliográfica) | K12: =SUM(K13) -> $4,600.0
C13: 5.20. | D13: Para 2026, se proyectan inversiones del orden de $4.600 millones para el mejoramiento de las redes cableada e inalámbrica del Campus y el fortalecimiento del esquema de Ciberseguridad. Este mejoramiento se centra principalmente en la Renovación Tecnológica de: * Red de Datos LAN del Campus: Cuatro (4) Equipos switches de Core y veintisiete (27) equipos switches de Distribución. * Red de Datos Inalámbrica WLAN del Campus: Quinientos cincuenta (550) Puntos de Acceso Inalámbrico Access Points. * Dos (2) equipos de ciberseguridad, con funciones asociadas a Sistema de Prevención de Intrusos IPS y Firewall. | E13: 2026-01-01 | F13: 2026-12-31 | G13: x | K13: $4,600.0
C14: TOTAL | K14: =K12 -> $4,600.0

Sheet Valoresmatriculaspreg2025_2026
A1: Volver al menú
B11: CODIGO SAE | C11: PROGRAMA | D11: Admisión y Matrícula | E11: Código SNIES del Programa | F11: No. Semestres Programa | G11: Periodos de facturación | H11: Valor Matrícula Ordinaria 2025 | I11: % Incremento | J11: Valor Matrícula Ordinaria 2026
C12: ARQUITECTURA Y DISEÑO
B13: ARQUI | C13: ARQUITECTURA | D13: Admitidos hasta el año 2023 | E13: 962 | F13: 10 | G13: SEMESTRAL | H13: $18,636,000 | I13: 5.95% | J13: =+ROUND((H13*I13)+H13,-3) -> $19,745,000
B14: ARQUI | C14: ARQUITECTURA | D14: Admitidos durante el año 2024 | E14: 962 | F14: 10 | G14: SEMESTRAL | H14: $18,805,000 | I14: 5.95% | J14: $19,924,000
B15: ARQUI | C15: ARQUITECTURA | D15: Admitidos durante el año 2025 | E15: 962 | F15: 10 | G15: SEMESTRAL | H15: $18,984,000 | I15: 5.95% | J15: $20,114,000
B16: ARQUI | C16: ARQUITECTURA | D16: Admitidos a partir del año 2026 | E16: 962 | F16: 10 | G16: SEMESTRAL | H16: $18,984,000 | I16: 6.51% | J16: =+ROUND((H16*I16)+H16,-3) -> $20,220,000
B17: DSIND | C17: DISEÑO INDUSTRIAL | D17: Admitidos hasta el año 2023 | E17: 925 | F17: 9 | G17: SEMESTRAL | H17: $18,636,000 | I17: 5.95% | J17: $19,745,000
B18: DSIND | C18: DISEÑO INDUSTRIAL | D18: Admitidos durante el año 2024 | E18: 925 | F18: 9 | G18: SEMESTRAL | H18: $18,805,000 | I18: 5.95% | J18: $19,924,000
B19: DSIND | C19: DISEÑO INDUSTRIAL | D19: Admitidos durante el año 2025 | E19: 925 | F19: 9 | G19: SEMESTRAL | H19: $18,984,000 | I19: 5.95% | J19: $20,114,000
B20: DSIND | C20: DISEÑO INDUSTRIAL | D20: Admitidos a partir del año 2026 | E20: 925 | F20: 9 | G20: SEMESTRAL | H20: $18,984,000 | I20: 6.51% | J20: =+ROUND((H20*I20)+H20,-3) -> $20,220,000
C22: ARTES
B23: EMSCL | C23: ESTUDIOS MUSICALES | D23: Admitidos hasta el año 2023 | E23: 926 | F23: 9 | G23: SEMESTRAL | H23: $16,471,000 | I23: 5.95% | J23: =+ROUND((H23*I23)+H23,-3) -> $17,451,000
B24: EMSCL | C24: ESTUDIOS MUSICALES | D24: Admitidos durante el año 2024 | E24: 926 | F24: 9 | G24: SEMESTRAL | H24: $16,621,000 | I24: 5.95% | J24: $17,610,000
B25: EMSCL | C25: ESTUDIOS MUSICALES | D25: Admitidos durante el año 2025 | E25: 926 | F25: 9 | G25: SEMESTRAL | H25: $16,779,000 | I25: 5.95% | J25: $17,777,000
B26: EMSCL | C26: ESTUDIOS MUSICALES | D26: Admitidos a partir del año 2026 | E26: 926 | F26: 9 | G26: SEMESTRAL | H26: $16,779,000 | I26: 6.51% | J26: =+ROUND((H26*I26)+H26,-3) -> $17,871,000
B27: ARTVI | C27: ARTES VISUALES | D27: Admitidos hasta el año 2023 | E27: 4876 | F27: 10 | G27: SEMESTRAL | H27: $16,471,000 | I27: 5.95% | J27: $17,451,000
B28: ARTVI | C28: ARTES VISUALES | D28: Admitidos durante el año 2024 | E28: 4876 | F28: 10 | G28: SEMESTRAL | H28: $16,621,000 | I28: 5.95% | J28: $17,610,000
B29: ARTVI | C29: ARTES VISUALES | D29: Admitidos durante el año 2025 | E29: 4876 | F29: 10 | G29: SEMESTRAL | H29: $16,779,000 | I29: 5.95% | J29: $17,777,000
B30: ARTVI | C30: ARTES VISUALES | D30: Admitidos a partir del año 2026 | E30: 4876 | F30: 10 | G30: SEMESTRAL | H30: $16,779,000 | I30: 6.51% | J30: =+ROUND((H30*I30)+H30,-3) -> $17,871,000
B31: ARESC | C31: ARTES ESCÉNICAS | D31: Admitidos hasta el año 2023 | E31: 103081 | F31: 8 | G31: SEMESTRAL | H31: $16,471,000 | I31: 5.95% | J31: $17,451,000
B32: ARESC | C32: ARTES ESCÉNICAS | D32: Admitidos durante el año 2024 | E32: 103081 | F32: 8 | G32: SEMESTRAL | H32: $16,621,000 | I32: 5.95% | J32: $17,610,000
B33: ARESC | C33: ARTES ESCÉNICAS | D33: Admitidos durante el año 2025 | E33: 103081 | F33: 8 | G33: SEMESTRAL | H33: $16,779,000 | I33: 5.95% | J33: $17,777,000
B34: ARESC | C34: ARTES ESCÉNICAS | D34: Admitidos a partir del año 2026 | E34: 103081 | F34: 8 | G34: SEMESTRAL | H34: $16,779,000 | I34: 6.51% | J34: =+ROUND((H34*I34)+H34,-3) -> $17,871,000
C36: CIENCIAS
B37: BACTE | C37: BACTERIOLOGÍA | D37: Admitidos hasta el año 2023 | E37: 943 | F37: 8 | G37: SEMESTRAL | H37: $12,199,000 | I37: 5.95% | J37: =+ROUND((H37*I37)+H37,-3) -> $12,925,000
B38: BACTE | C38: BACTERIOLOGÍA | D38: Admitidos durante el año 2024 | E38: 943 | F38: 8 | G38: SEMESTRAL | H38: $12,310,000 | I38: 5.95% | J38: $13,042,000
B39: BACTE | C39: BACTERIOLOGÍA | D39: Admitidos durante el año 2025 | E39: 943 | F39: 8 | G39: SEMESTRAL | H39: $12,427,000 | I39: 5.95% | J39: $13,166,000
B40: BACTE | C40: BACTERIOLOGÍA | D40: Admitidos a partir del año 2026 | E40: 943 | F40: 8 | G40: SEMESTRAL | H40: $12,427,000 | I40: 6.51% | J40: =+ROUND((H40*I40)+H40,-3) -> $13,236,000
B41: BIOLG | C41: BIOLOGÍA | D41: Admitidos hasta el año 2023 | E41: 964 | F41: 10 | G41: SEMESTRAL | H41: $13,051,000 | I41: 5.95% | J41: $13,828,000
B42: BIOLG | C42: BIOLOGÍA | D42: Admitidos durante el año 2024 | E42: 964 | F42: 10 | G42: SEMESTRAL | H42: $13,170,000 | I42: 5.95% | J42: $13,954,000
B43: BIOLG | C43: BIOLOGÍA | D43: Admitidos durante el año 2025 | E43: 964 | F43: 10 | G43: SEMESTRAL | H43: $13,295,000 | I43: 5.95% | J43: $14,086,000
B44: BIOLG | C44: BIOLOGÍA | D44: Admitidos a partir del año 2026 | E44: 964 | F44: 10 | G44: SEMESTRAL | H44: $13,295,000 | I44: 6.51% | J44: =+ROUND((H44*I44)+H44,-3) -> $14,161,000
B45: CIDAT | C45: CIENCIA DE DATOS | D45: Admitidos hasta el año 2023 | E45: 108890 | F45: 8 | G45: SEMESTRAL | H45: $14,182,000 | I45: 5.95% | J45: $15,026,000
B46: CIDAT | C46: CIENCIA DE DATOS | D46: Admitidos durante el año 2024 | E46: 108890 | F46: 8 | G46: SEMESTRAL | H46: $14,310,000 | I46: 5.95% | J46: $15,161,000
B47: CIDAT | C47: CIENCIA DE DATOS | D47: Admitidos durante el año 2025 | E47: 108890 | F47: 8 | G47: SEMESTRAL | H47: $14,446,000 | I47: 5.95% | J47: $15,306,000
B48: CIDAT | C48: CIENCIA DE DATOS | D48: Admitidos a partir del año 2026 | E48: 108890 | F48: 8 | G48: SEMESTRAL | H48: $14,446,000 | I48: 6.51% | J48: =+ROUND((H48*I48)+H48,-3) -> $15,386,000
B49: NUTDT | C49: NUTRICIÓN Y DIETÉTICA | D49: Admitidos hasta el año 2023 | E49: 946 | F49: 10 | G49: SEMESTRAL | H49: $13,051,000 | I49: 5.95% | J49: $13,828,000
B50: NUTDT | C50: NUTRICIÓN Y DIETÉTICA | D50: Admitidos durante el año 2024 | E50: 946 | F50: 10 | G50: SEMESTRAL | H50: $13,170,000 | I50: 5.95% | J50: $13,954,000
B51: NUTDT | C51: NUTRICIÓN Y DIETÉTICA | D51: Admitidos durante el año 2025 | E51: 946 | F51: 10 | G51: SEMESTRAL | H51: $13,295,000 | I51: 5.95% | J51: $14,086,000
B52: NUTDT | C52: NUTRICIÓN Y DIETÉTICA | D52: Admitidos a partir del año 2026 | E52: 946 | F52: 10 | G52: SEMESTRAL | H52: $13,295,000 | I52: 6.51% | J52: =+ROUND((H52*I52)+H52,-3) -> $14,161,000
B53: MINDS | C53: MICROBIOLOGÍA INDUSTRIAL | D53: Admitidos hasta el año 2023 | E53: 2830 | F53: 8 | G53: SEMESTRAL | H53: $13,051,000 | I53: 5.95% | J53: $13,828,000
B54: MINDS | C54: MICROBIOLOGÍA INDUSTRIAL | D54: Admitidos durante el año 2024 | E54: 2830 | F54: 8 | G54: SEMESTRAL | H54: $13,170,000 | I54: 5.95% | J54: $13,954,000
B55: MINDS | C55: MICROBIOLOGÍA INDUSTRIAL | D55: Admitidos durante el año 2025 | E55: 2830 | F55: 8 | G55: SEMESTRAL | H55: $13,295,000 | I55: 5.95% | J55: $14,086,000
B56: MINDS | C56: MICROBIOLOGÍA INDUSTRIAL | D56: Admitidos a partir del año 2026 | E56: 2830 | F56: 8 | G56: SEMESTRAL | H56: $13,295,000 | I56: 6.51% | J56: =+ROUND((H56*I56)+H56,-3) -> $14,161,000
B57: MATEM | C57: MATEMÁTICAS | D57: Admitidos hasta el año 2023 | E57: 965 | F57: 8 | G57: SEMESTRAL | H57: $7,765,000 | I57: 5.95% | J57: $8,227,000
B58: MATEM | C58: MATEMÁTICAS | D58: Admitidos durante el año 2024 | E58: 965 | F58: 8 | G58: SEMESTRAL | H58: $7,834,000 | I58: 5.95% | J58: $8,300,000
B59: MATEM | C59: MATEMÁTICAS | D59: Admitidos durante el año 2025 | E59: 965 | F59: 8 | G59: SEMESTRAL | H59: $7,908,000 | I59: 5.95% | J59: $8,379,000
B60: MATEM | C60: MATEMÁTICAS | D60: Admitidos a partir del año 2026 | E60: 965 | F60: 8 | G60: SEMESTRAL | H60: $7,908,000 | I60: 6.51% | J60: =+ROUND((H60*I60)+H60,-3) -> $8,423,000
B61: QUIFA | C61: QUÍMICA FARMACÉUTICA | D61: Admitidos hasta el año 2023 | E61: 108657 | F61: 8 | G61: SEMESTRAL | H61: $13,051,000 | I61: 5.95% | J61: $13,828,000
B62: QUIFA | C62: QUÍMICA FARMACÉUTICA | D62: Admitidos durante el año 2024 | E62: 108657 | F62: 8 | G62: SEMESTRAL | H62: $13,170,000 | I62: 5.95% | J62: $13,954,000
B63: QUIFA | C63: QUÍMICA FARMACÉUTICA | D63: Admitidos durante el año 2025 | E63: 108657 | F63: 8 | G63: SEMESTRAL | H63: $13,295,000 | I63: 5.95% | J63: $14,086,000
B64: QUIFA | C64: QUÍMICA FARMACÉUTICA | D64: Admitidos a partir del año 2026 | E64: 108657 | F64: 8 | G64: SEMESTRAL | H64: $13,295,000 | I64: 6.51% | J64: =+ROUND((H64*I64)+H64,-3) -> $14,161,000
C66: CIENCIAS ECONÓMICAS Y ADMINISTRATIVAS
B67: ADMD | C67: ADMINISTRACIÓN DE EMPRESAS (Diurno) | D67: Admitidos hasta el año 2019 | E67: 953 | F67: 8 | G67: SEMESTRAL | H67: $16,811,000 | I67: 5.95% | J67: =+ROUND((H67*I67)+H67,-3) -> $17,811,000
B68: ADMD | C68: ADMINISTRACIÓN DE EMPRESAS (Diurno) | D68: Admitidos hasta el año 2023 | E68: 953 | F68: 8 | G68: SEMESTRAL | H68: $17,287,000 | I68: 5.95% | J68: $18,316,000
B69: ADMD | C69: ADMINISTRACIÓN DE EMPRESAS (Diurno) | D69: Admitidos durante el año 2024 | E69: 953 | F69: 8 | G69: SEMESTRAL | H69: $17,443,000 | I69: 5.95% | J69: $18,481,000
B70: ADMD | C70: ADMINISTRACIÓN DE EMPRESAS (Diurno) | D70: Admitidos durante el año 2025 | E70: 953 | F70: 8 | G70: SEMESTRAL | H70: $17,609,000 | I70: 5.95% | J70: =+ROUND((H70*I70)+H70,-3) -> $18,657,000
B71: ADMD | C71: ADMINISTRACIÓN DE EMPRESAS (Diurno) | D71: Admitidos a partir del año 2026 | E71: 953 | F71: 8 | G71: SEMESTRAL | H71: $17,609,000 | I71: 6.51% | J71: =+ROUND((H71*I71)+H71,-3) -> $18,755,000
B72: ADMIN | C72: ADMINISTRACIÓN DE EMPRESAS (Nocturno) | D72: Admitidos a partir del año 2026 | E72: 953 | F72: 10 | G72: SEMESTRAL | H72: $12,678,000 | I72: 6.51% | J72: =+ROUND((H72*I72)+H72,-3) -> $13,503,000
B73: ADMN | C73: ADMINISTRACIÓN DE EMPRESAS (Nocturno) | D73: Admitidos hasta el año 2011 | E73: 953 | F73: 8 | G73: SEMESTRAL | H73: $13,284,000 | I73: 5.95% | J73: =+ROUND((H73*I73)+H73,-3) -> $14,074,000
B74: ADMN | C74: ADMINISTRACIÓN DE EMPRESAS (Nocturno) | D74: Admitidos durante el año 2012 | E74: 953 | F74: 8 | G74: SEMESTRAL | H74: $14,401,000 | I74: 5.95% | J74: $15,258,000
B75: ADMN | C75: ADMINISTRACIÓN DE EMPRESAS (Nocturno) | D75: Admitidos a partir del año 2013 hasta el año 2019 | E75: 953 | F75: 8 | G75: SEMESTRAL | H75: $16,811,000 | I75: 5.95% | J75: $17,811,000
B76: ECONM | C76: ECONOMÍA | D76: Admitidos hasta el año 2023 | E76: 952 | F76: 8 | G76: SEMESTRAL | H76: $18,188,000 | I76: 5.95% | J76: $19,270,000
B77: ECONM | C77: ECONOMÍA | D77: Admitidos durante el año 2024 | E77: 952 | F77: 8 | G77: SEMESTRAL | H77: $18,353,000 | I77: 5.95% | J77: $19,445,000
B78: ECONM | C78: ECONOMÍA | D78: Admitidos durante el año 2025 | E78: 952 | F78: 8 | G78: SEMESTRAL | H78: $18,527,000 | I78: 5.95% | J78: =+ROUND((H78*I78)+H78,-3) -> $19,629,000
B79: ECONM | C79: ECONOMÍA | D79: Admitidos a partir del año 2026 | E79: 952 | F79: 8 | G79: SEMESTRAL | H79: $18,527,000 | I79: 6.51% | J79: =+ROUND((H79*I79)+H79,-3) -> $19,733,000
B80: CTDPD | C80: CONTADURÍA PUBLICA (Diurno) | D80: Admitidos hasta el año 2023 | E80: 954 | F80: 8 | G80: SEMESTRAL | H80: $8,894,000 | I80: 5.95% | J80: $9,423,000
B81: CTDPD | C81: CONTADURÍA PUBLICA (Diurno) | D81: Admitidos durante el año 2024 | E81: 954 | F81: 8 | G81: SEMESTRAL | H81: $8,976,000 | I81: 5.95% | J81: $9,510,000
B82: CTDPD | C82: CONTADURÍA PUBLICA (Diurno) | D82: Admitidos durante el año 2025 | E82: 954 | F82: 8 | G82: SEMESTRAL | H82: $9,061,000 | I82: 5.95% | J82: =+ROUND((H82*I82)+H82,-3) -> $9,600,000
B83: CTDPD | C83: CONTADURÍA PUBLICA (Diurno) | D83: Admitidos a partir del año 2026 | E83: 954 | F83: 8 | G83: SEMESTRAL | H83: $9,061,000 | I83: 6.51% | J83: =+ROUND((H83*I83)+H83,-3) -> $9,651,000
B84: CTDPN | C84: CONTADURÍA PUBLICA (Nocturno) | D84: Admitidos hasta el año 2017 | E84: 954 | F84: 8 | G84: SEMESTRAL | H84: $8,894,000 | I84: 5.95% | J84: $9,423,000
B85: FINAN | C85: FINANZAS | D85: Admitidos hasta el año 2023 | E85: 108841 | F85: 8 | G85: SEMESTRAL | H85: $18,188,000 | I85: 5.95% | J85: $19,270,000
B86: FINAN | C86: FINANZAS | D86: Admitidos durante el año 2024 | E86: 108841 | F86: 8 | G86: SEMESTRAL | H86: $18,353,000 | I86: 5.95% | J86: $19,445,000
B87: FINAN | C87: FINANZAS | D87: Admitidos durante el año 2025 | E87: 108841 | F87: 8 | G87: SEMESTRAL | H87: $18,527,000 | I87: 5.95% | J87: =+ROUND((H87*I87)+H87,-3) -> $19,629,000
B88: FINAN | C88: FINANZAS | D88: Admitidos a partir del año 2026 | E88: 108841 | F88: 8 | G88: SEMESTRAL | H88: $18,527,000 | I88: 6.51% | J88: =+ROUND((H88*I88)+H88,-3) -> $19,733,000
B89: NINTR | C89: NEGOCIOS INTERNACIONALES | D89: Admitidos durante el año 2025 | E89: 117291 | F89: 8 | G89: SEMESTRAL | H89: $18,527,000 | I89: 5.95% | J89: $19,629,000
B90: NINTR | C90: NEGOCIOS INTERNACIONALES | D90: Admitidos a partir del año 2026 | E90: 117291 | F90: 8 | G90: SEMESTRAL | H90: $18,527,000 | I90: 6.51% | J90: =+ROUND((H90*I90)+H90,-3) -> $19,733,000
C92: CIENCIAS JURÍDICAS
B93: DRCHO | C93: DERECHO | D93: Admitidos hasta el año 2019 | E93: 951 | F93: 10 | G93: SEMESTRAL | H93: $17,637,000 | I93: 5.95% | J93: =+ROUND((H93*I93)+H93,-3) -> $18,686,000
B94: DRCHO | C94: DERECHO | D94: Admitidos hasta el año 2023 | E94: 951 | F94: 10 | G94: SEMESTRAL | H94: $17,986,000 | I94: 5.95% | J94: =+ROUND((H94*I94)+H94,-3) -> $19,056,000
B95: DRCHO | C95: DERECHO | D95: Admitidos durante el año 2024 | E95: 951 | F95: 10 | G95: SEMESTRAL | H95: $18,148,000 | I95: 5.95% | J95: =+ROUND((H95*I95)+H95,-3) -> $19,228,000
B96: DRCHO | C96: DERECHO | D96: Admitidos durante el año 2025 | E96: 951 | F96: 10 | G96: SEMESTRAL | H96: $18,321,000 | I96: 5.95% | J96: =+ROUND((H96*I96)+H96,-3) -> $19,411,000
B97: DRCHO | C97: DERECHO | D97: Admitidos a partir del año 2026 | E97: 951 | F97: 10 | G97: SEMESTRAL | H97: $18,321,000 | I97: 6.51% | J97: =+ROUND((H97*I97)+H97,-3) -> $19,514,000
C99: CIENCIAS POLÍTICAS Y RELACIONES INTERNACIONALES
B100: POLIT | C100: CIENCIA POLÍTICA | D100: Admitidos hasta el año 2023 | E100: 3078 | F100: 10 | G100: SEMESTRAL | H100: $15,894,000 | I100: 5.95% | J100: =+ROUND((H100*I100)+H100,-3) -> $16,840,000
B101: POLIT | C101: CIENCIA POLÍTICA | D101: Admitidos durante el año 2024 | E101: 3078 | F101: 10 | G101: SEMESTRAL | H101: $16,038,000 | I101: 5.95% | J101: $16,992,000
B102: POLIT | C102: CIENCIA POLÍTICA | D102: Admitidos durante el año 2025 | E102: 3078 | F102: 10 | G102: SEMESTRAL | H102: $16,190,000 | I102: 5.95% | J102: $17,153,000
B103: POLIT | C103: CIENCIA POLÍTICA | D103: Admitidos a partir del año 2026 | E103: 3078 | F103: 10 | G103: SEMESTRAL | H103: $16,190,000 | I103: 6.51% | J103: =+ROUND((H103*I103)+H103,-3) -> $17,244,000
B104: RLINT | C104: RELACIONES INTERNACIONALES | D104: Admitidos hasta el año 2023 | E104: 90844 | F104: 10 | G104: SEMESTRAL | H104: $15,894,000 | I104: 5.95% | J104: $16,840,000
B105: RLINT | C105: RELACIONES INTERNACIONALES | D105: Admitidos durante el año 2024 | E105: 90844 | F105: 10 | G105: SEMESTRAL | H105: $16,038,000 | I105: 5.95% | J105: $16,992,000
B106: RLINT | C106: RELACIONES INTERNACIONALES | D106: Admitidos durante el año 2025 | E106: 90844 | F106: 10 | G106: SEMESTRAL | H106: $16,190,000 | I106: 5.95% | J106: $17,153,000
B107: RLINT | C107: RELACIONES INTERNACIONALES | D107: Admitidos a partir del año 2026 | E107: 90844 | F107: 10 | G107: SEMESTRAL | H107: $16,190,000 | I107: 6.51% | J107: =+ROUND((H107*I107)+H107,-3) -> $17,244,000
C109: CIENCIAS SOCIALES
B110: HISTO | C110: HISTORIA | D110: Admitidos hasta el año 2023 | E110: 956 | F110: 8 | G110: SEMESTRAL | H110: $12,092,000 | I110: 5.95% | J110: =+ROUND((H110*I110)+H110,-3) -> $12,811,000
B111: HISTO | C111: HISTORIA | D111: Admitidos durante el año 2024 | E111: 956 | F111: 8 | G111: SEMESTRAL | H111: $12,201,000 | I111: 5.95% | J111: $12,927,000
B112: HISTO | C112: HISTORIA | D112: Admitidos a partir del año 2025 | E112: 956 | F112: 8 | G112: SEMESTRAL | H112: $12,317,000 | I112: 5.95% | J112: $13,050,000
B113: LITER | C113: ESTUDIOS LITERARIOS | D113: Admitidos hasta el año 2023 | E113: 958 | F113: 8 | G113: SEMESTRAL | H113: $12,092,000 | I113: 5.95% | J113: $12,811,000
B114: LITER | C114: ESTUDIOS LITERARIOS | D114: Admitidos durante el año 2024 | E114: 958 | F114: 8 | G114: SEMESTRAL | H114: $12,201,000 | I114: 5.95% | J114: $12,927,000
B115: LITER | C115: ESTUDIOS LITERARIOS | D115: Admitidos a partir del año 2025 | E115: 958 | F115: 8 | G115: SEMESTRAL | H115: $12,317,000 | I115: 5.95% | J115: $13,050,000
B116: ANTRO | C116: ANTROPOLOGÍA | D116: Admitidos hasta el año 2023 | E116: 20476 | F116: 8 | G116: SEMESTRAL | H116: $12,092,000 | I116: 5.95% | J116: $12,811,000
B117: ANTRO | C117: ANTROPOLOGÍA | D117: Admitidos durante el año 2024 | E117: 20476 | F117: 8 | G117: SEMESTRAL | H117: $12,201,000 | I117: 5.95% | J117: $12,927,000
B118: ANTRO | C118: ANTROPOLOGÍA | D118: Admitidos a partir del año 2025 | E118: 20476 | F118: 8 | G118: SEMESTRAL | H118: $12,317,000 | I118: 5.95% | J118: $13,050,000
B119: SOCIO | C119: SOCIOLOGÍA | D119: Admitidos hasta el año 2023 | E119: 20611 | F119: 8 | G119: SEMESTRAL | H119: $12,092,000 | I119: 5.95% | J119: $12,811,000
B120: SOCIO | C120: SOCIOLOGÍA | D120: Admitidos durante el año 2024 | E120: 20611 | F120: 8 | G120: SEMESTRAL | H120: $12,201,000 | I120: 5.95% | J120: $12,927,000
B121: SOCIO | C121: SOCIOLOGÍA | D121: Admitidos a partir del año 2025 | E121: 20611 | F121: 8 | G121: SEMESTRAL | H121: $12,317,000 | I121: 5.95% | J121: $13,050,000
C123: COMUNICACIÓN Y LENGUAJE
B124: COMSC | C124: COMUNICACIÓN SOCIAL | D124: Admitidos hasta el año 2023 | E124: 949 | F124: 8 | G124: SEMESTRAL | H124: $16,973,000 | I124: 5.95% | J124: =+ROUND((H124*I124)+H124,-3) -> $17,983,000
B125: COMSC | C125: COMUNICACIÓN SOCIAL | D125: Admitidos durante el año 2024 | E125: 949 | F125: 8 | G125: SEMESTRAL | H125: $17,127,000 | I125: 5.95% | J125: $18,146,000
B126: COMSC | C126: COMUNICACIÓN SOCIAL | D126: Admitidos durante el año 2025 | E126: 949 | F126: 8 | G126: SEMESTRAL | H126: $17,289,000 | I126: 5.95% | J126: $18,318,000
B127: COMSC | C127: COMUNICACIÓN SOCIAL | D127: Admitidos a partir del año 2026 | E127: 949 | F127: 8 | G127: SEMESTRAL | H127: $17,289,000 | I127: 6.51% | J127: =+ROUND((H127*I127)+H127,-3) -> $18,415,000
B128: LLMOD | C128: LICENCIATURA EN LENGUAS MODERNAS CON ÉNFASIS EN INGLÉS Y FRANCÉS | D128: Admitidos hasta el año 2023 | E128: 106061 | F128: 8 | G128: SEMESTRAL | H128: $11,686,000 | I128: 5.95% | J128: $12,381,000
B129: LLMOD | C129: LICENCIATURA EN LENGUAS MODERNAS CON ÉNFASIS EN INGLÉS Y FRANCÉS | D129: Admitidos durante el año 2024 | E129: 106061 | F129: 8 | G129: SEMESTRAL | H129: $11,791,000 | I129: 5.95% | J129: $12,493,000
B130: LLMOD | C130: LICENCIATURA EN LENGUAS MODERNAS CON ÉNFASIS EN INGLÉS Y FRANCÉS | D130: Admitidos durante el año 2025 | E130: 106061 | F130: 8 | G130: SEMESTRAL | H130: $11,903,000 | I130: 5.95% | J130: $12,611,000
B131: LLMOD | C131: LICENCIATURA EN LENGUAS MODERNAS CON ÉNFASIS EN INGLÉS Y FRANCÉS | D131: Admitidos a partir del año 2026 | E131: 106061 | F131: 8 | G131: SEMESTRAL | H131: $11,903,000 | I131: 6.51% | J131: =+ROUND((H131*I131)+H131,-3) -> $12,678,000
B132: CIBAR | C132: CIENCIA DE LA INFORMACIÓN, BIBLIOTECOLOGÍA Y ARCHIVÍSTICA | D132: Admitidos hasta el año 2023 | E132: 108575 | F132: 8 | G132: SEMESTRAL | H132: $7,027,000 | I132: 5.95% | J132: $7,445,000
B133: CIBAR | C133: CIENCIA DE LA INFORMACIÓN, BIBLIOTECOLOGÍA Y ARCHIVÍSTICA | D133: Admitidos durante el año 2024 | E133: 108575 | F133: 8 | G133: SEMESTRAL | H133: $7,091,000 | I133: 5.95% | J133: $7,513,000
B134: CIBAR | C134: CIENCIA DE LA INFORMACIÓN, BIBLIOTECOLOGÍA Y ARCHIVÍSTICA | D134: Admitidos durante el año 2025 | E134: 108575 | F134: 8 | G134: SEMESTRAL | H134: $7,158,000 | I134: 5.95% | J134: $7,584,000
B135: CIBAR | C135: CIENCIA DE LA INFORMACIÓN, BIBLIOTECOLOGÍA Y ARCHIVÍSTICA | D135: Admitidos a partir del año 2026 | E135: 108575 | F135: 8 | G135: SEMESTRAL | H135: $7,158,000 | I135: 6.51% | J135: =+ROUND((H135*I135)+H135,-3) -> $7,624,000
C137: EDUCACIÓN
B138: LCNEA | C138: LICENCIATURA EN CIENCIAS NATURALES Y EDUCACIÓN AMBIENTAL | D138: Admitidos hasta el año 2023 | E138: 108729 | F138: 8 | G138: SEMESTRAL | H138: $7,800,000 | I138: 5.95% | J138: =+ROUND((H138*I138)+H138,-3) -> $8,264,000
B139: LCNEA | C139: LICENCIATURA EN CIENCIAS NATURALES Y EDUCACIÓN AMBIENTAL | D139: Admitidos durante el año 2024 | E139: 108729 | F139: 8 | G139: SEMESTRAL | H139: $7,871,000 | I139: 5.95% | J139: $8,339,000
B140: LCNEA | C140: LICENCIATURA EN CIENCIAS NATURALES Y EDUCACIÓN AMBIENTAL | D140: Admitidos a partir del año 2025 | E140: 108729 | F140: 8 | G140: SEMESTRAL | H140: $7,946,000 | I140: 5.95% | J140: $8,419,000
B141: INFTL | C141: LICENCIATURA EN EDUCACIÓN INFANTIL | D141: Admitidos hasta el año 2023 | E141: 106094 | F141: 8 | G141: SEMESTRAL | H141: $7,800,000 | I141: 5.95% | J141: $8,264,000
B142: INFTL | C142: LICENCIATURA EN EDUCACIÓN INFANTIL | D142: Admitidos durante el año 2024 | E142: 106094 | F142: 8 | G142: SEMESTRAL | H142: $7,871,000 | I142: 5.95% | J142: $8,339,000
B143: INFTL | C143: LICENCIATURA EN EDUCACIÓN INFANTIL | D143: Admitidos a partir del año 2025 | E143: 106094 | F143: 8 | G143: SEMESTRAL | H143: $7,946,000 | I143: 5.95% | J143: $8,419,000
B144: LFILE | C144: LICENCIATURA EN FILOSOFÍA | D144: Admitidos hasta el año 2023 | E144: 933 | F144: 8 | G144: SEMESTRAL | H144: $8,831,000 | I144: 5.95% | J144: $9,356,000
B145: LFILE | C145: LICENCIATURA EN FILOSOFÍA | D145: Admitidos durante el año 2024 | E145: 933 | F145: 8 | G145: SEMESTRAL | H145: $8,911,000 | I145: 5.95% | J145: $9,441,000
B146: LFILE | C146: LICENCIATURA EN FILOSOFÍA | D146: Admitidos a partir del año 2025 | E146: 933 | F146: 8 | G146: SEMESTRAL | H146: $8,996,000 | I146: 5.95% | J146: $9,531,000
B147: LEDUF | C147: LICENCIATURA EN EDUCACIÓN FÍSICA | D147: Admitidos hasta el año 2023 | E147: 108244 | F147: 8 | G147: SEMESTRAL | H147: $7,800,000 | I147: 5.95% | J147: $8,264,000
B148: LEDUF | C148: LICENCIATURA EN EDUCACIÓN FÍSICA | D148: Admitidos durante el año 2024 | E148: 108244 | F148: 8 | G148: SEMESTRAL | H148: $7,871,000 | I148: 5.95% | J148: $8,339,000
B149: LEDUF | C149: LICENCIATURA EN EDUCACIÓN FÍSICA | D149: Admitidos a partir del año 2025 | E149: 108244 | F149: 8 | G149: SEMESTRAL | H149: $7,946,000 | I149: 5.95% | J149: $8,419,000
B150: LLLCA | C150: LICENCIATURA EN LITERATURA Y LENGUA CASTELLANA | D150: Admitidos hasta el año 2023 | E150: 108869 | F150: 8 | G150: SEMESTRAL | H150: $7,800,000 | I150: 5.95% | J150: $8,264,000
B151: LLLCA | C151: LICENCIATURA EN LITERATURA Y LENGUA CASTELLANA | D151: Admitidos durante el año 2024 | E151: 108869 | F151: 8 | G151: SEMESTRAL | H151: $7,871,000 | I151: 5.95% | J151: $8,339,000
B152: LLLCA | C152: LICENCIATURA EN LITERATURA Y LENGUA CASTELLANA | D152: Admitidos a partir del año 2025 | E152: 108869 | F152: 8 | G152: SEMESTRAL | H152: $7,946,000 | I152: 5.95% | J152: $8,419,000
B153: LEDBA | C153: LICENCIATURA EN EDUCACIÓN BÁSICA CON ÉNFASIS EN HUMANIDADES Y LENGUA CASTELLANA | D153: Admitidos hasta el año 2015 | E153: 15442 | F153: 12 | G153: SEMESTRAL | H153: $3,038,000 | I153: 5.95% | J153: $3,219,000
C155: ENFERMERÍA
B156: ENFER | C156: ENFERMERÍA | D156: Admitidos hasta el año 2023 | E156: 944 | F156: 9 | G156: SEMESTRAL | H156: $9,917,000 | I156: 5.95% | J156: =+ROUND((H156*I156)+H156,-3) -> $10,507,000
B157: ENFER | C157: ENFERMERÍA | D157: Admitidos durante el año 2024 | E157: 944 | F157: 9 | G157: SEMESTRAL | H157: $10,008,000 | I157: 5.95% | J157: =+ROUND((H157*I157)+H157,-3) -> $10,603,000
B158: ENFER | C158: ENFERMERÍA | D158: Admitidos durante el año 2025 | E158: 944 | F158: 9 | G158: SEMESTRAL | H158: $10,103,000 | I158: 5.95% | J158: =+ROUND((H158*I158)+H158,-3) -> $10,704,000
B159: ENFER | C159: ENFERMERÍA | D159: Admitidos a partir del año 2026 | E159: 944 | F159: 9 | G159: SEMESTRAL | H159: $10,103,000 | I159: 6.51% | J159: =+ROUND((H159*I159)+H159,-3) -> $10,761,000
C161: ESTUDIOS AMBIENTALES
B162: ECOLG | C162: ECOLOGÍA | D162: Admitidos hasta el año 2023 | E162: 2842 | F162: 10 | G162: SEMESTRAL | H162: $13,051,000 | I162: 5.95% | J162: =+ROUND((H162*I162)+H162,-3) -> $13,828,000
B163: ECOLG | C163: ECOLOGÍA | D163: Admitidos durante el año 2024 | E163: 2842 | F163: 10 | G163: SEMESTRAL | H163: $13,170,000 | I163: 5.95% | J163: =+ROUND((H163*I163)+H163,-3) -> $13,954,000
B164: ECOLG | C164: ECOLOGÍA | D164: Admitidos a partir del año 2025 | E164: 2842 | F164: 10 | G164: SEMESTRAL | H164: $13,295,000 | I164: 5.95% | J164: =+ROUND((H164*I164)+H164,-3) -> $14,086,000
C166: FILOSOFÍA
B167: FILOS | C167: FILOSOFÍA | D167: Admitidos hasta el año 2023 | E167: 955 | F167: 8 | G167: SEMESTRAL | H167: $9,272,000 | I167: 5.95% | J167: =+ROUND((H167*I167)+H167,-3) -> $9,824,000
B168: FILOS | C168: FILOSOFÍA | D168: Admitidos durante el año 2024 | E168: 955 | F168: 8 | G168: SEMESTRAL | H168: $9,356,000 | I168: 5.95% | J168: =+ROUND((H168*I168)+H168,-3) -> $9,913,000
B169: FILOS | C169: FILOSOFÍA | D169: Admitidos durante el año 2025 | E169: 955 | F169: 8 | G169: SEMESTRAL | H169: $9,445,000 | I169: 5.95% | J169: =+ROUND((H169*I169)+H169,-3) -> $10,007,000
B170: FILOS | C170: FILOSOFÍA | D170: Admitidos a partir del año 2026 | E170: 955 | F170: 8 | G170: SEMESTRAL | H170: $9,445,000 | I170: 6.51% | J170: =+ROUND((H170*I170)+H170,-3) -> $10,060,000
B171: LFILO | C171: LICENCIATURA EN FILOSOFÍA | D171: Admitidos hasta el año 2017 | E171: 933 | F171: 9 | G171: SEMESTRAL | H171: $9,272,000 | I171: 5.95% | J171: =+ROUND((H171*I171)+H171,-3) -> $9,824,000
C173: INGENIERÍA
B174: BIOIN | C174: BIOINGENIERÍA | D174: Admitidos hasta el año 2023 | E174: 108889 | F174: 8 | G174: SEMESTRAL | H174: $17,728,000 | I174: 5.95% | J174: =+ROUND((H174*I174)+H174,-3) -> $18,783,000
B175: BIOIN | C175: BIOINGENIERÍA | D175: Admitidos durante el año 2024 | E175: 108889 | F175: 8 | G175: SEMESTRAL | H175: $17,889,000 | I175: 5.95% | J175: $18,953,000
B176: BIOIN | C176: BIOINGENIERÍA | D176: Admitidos durante el año 2025 | E176: 108889 | F176: 8 | G176: SEMESTRAL | H176: $18,059,000 | I176: 5.95% | J176: $19,134,000
B177: BIOIN | C177: BIOINGENIERÍA | D177: Admitidos a partir del año 2026 | E177: 108889 | F177: 8 | G177: SEMESTRAL | H177: $18,059,000 | I177: 6.51% | J177: =+ROUND((H177*I177)+H177,-3) -> $19,235,000
B178: ICIVL | C178: INGENIERÍA CIVIL | D178: Admitidos hasta el año 2023 | E178: 959 | F178: 8 | G178: SEMESTRAL | H178: $17,728,000 | I178: 5.95% | J178: $18,783,000
B179: ICIVL | C179: INGENIERÍA CIVIL | D179: Admitidos durante el año 2024 | E179: 959 | F179: 8 | G179: SEMESTRAL | H179: $17,889,000 | I179: 5.95% | J179: $18,953,000
B180: ICIVL | C180: INGENIERÍA CIVIL | D180: Admitidos durante el año 2025 | E180: 959 | F180: 8 | G180: SEMESTRAL | H180: $18,059,000 | I180: 5.95% | J180: $19,134,000
B181: ICIVL | C181: INGENIERÍA CIVIL | D181: Admitidos a partir del año 2026 | E181: 959 | F181: 8 | G181: SEMESTRAL | H181: $18,059,000 | I181: 6.51% | J181: =+ROUND((H181*I181)+H181,-3) -> $19,235,000
B182: IELEC | C182: INGENIERÍA ELECTRÓNICA | D182: Admitidos hasta el año 2023 | E182: 960 | F182: 8 | G182: SEMESTRAL | H182: $17,728,000 | I182: 5.95% | J182: $18,783,000
B183: IELEC | C183: INGENIERÍA ELECTRÓNICA | D183: Admitidos durante el año 2024 | E183: 960 | F183: 8 | G183: SEMESTRAL | H183: $17,889,000 | I183: 5.95% | J183: $18,953,000
B184: IELEC | C184: INGENIERÍA ELECTRÓNICA | D184: Admitidos durante el año 2025 | E184: 960 | F184: 8 | G184: SEMESTRAL | H184: $18,059,000 | I184: 5.95% | J184: $19,134,000
B185: IELEC | C185: INGENIERÍA ELECTRÓNICA | D185: Admitidos a partir del año 2026 | E185: 960 | F185: 8 | G185: SEMESTRAL | H185: $18,059,000 | I185: 6.51% | J185: =+ROUND((H185*I185)+H185,-3) -> $19,235,000
B186: IINDS | C186: INGENIERÍA INDUSTRIAL | D186: Admitidos hasta el año 2023 | E186: 961 | F186: 8 | G186: SEMESTRAL | H186: $17,728,000 | I186: 5.95% | J186: $18,783,000
B187: IINDS | C187: INGENIERÍA INDUSTRIAL | D187: Admitidos durante el año 2024 | E187: 961 | F187: 8 | G187: SEMESTRAL | H187: $17,889,000 | I187: 5.95% | J187: $18,953,000
B188: IINDS | C188: INGENIERÍA INDUSTRIAL | D188: Admitidos durante el año 2025 | E188: 961 | F188: 8 | G188: SEMESTRAL | H188: $18,059,000 | I188: 5.95% | J188: $19,134,000
B189: IINDS | C189: INGENIERÍA INDUSTRIAL | D189: Admitidos a partir del año 2026 | E189: 961 | F189: 8 | G189: SEMESTRAL | H189: $18,059,000 | I189: 6.51% | J189: =+ROUND((H189*I189)+H189,-3) -> $19,235,000
B190: IMECA | C190: INGENIERÍA MECÁNICA | D190: Admitidos hasta el año 2023 | E190: 108952 | F190: 8 | G190: SEMESTRAL | H190: $17,728,000 | I190: 5.95% | J190: $18,783,000
B191: IMECA | C191: INGENIERÍA MECÁNICA | D191: Admitidos durante el año 2024 | E191: 108952 | F191: 8 | G191: SEMESTRAL | H191: $17,889,000 | I191: 5.95% | J191: $18,953,000
B192: IMECA | C192: INGENIERÍA MECÁNICA | D192: Admitidos durante el año 2025 | E192: 108952 | F192: 8 | G192: SEMESTRAL | H192: $18,059,000 | I192: 5.95% | J192: $19,134,000
B193: IMECA | C193: INGENIERÍA MECÁNICA | D193: Admitidos a partir del año 2026 | E193: 108952 | F193: 8 | G193: SEMESTRAL | H193: $18,059,000 | I193: 6.51% | J193: =+ROUND((H193*I193)+H193,-3) -> $19,235,000
B194: IMETR | C194: INGENIERÍA MECATRÓNICA | D194: Admitidos hasta el año 2023 | E194: 109228 | F194: 8 | G194: SEMESTRAL | H194: $17,728,000 | I194: 5.95% | J194: $18,783,000
B195: IMETR | C195: INGENIERÍA MECATRÓNICA | D195: Admitidos durante el año 2024 | E195: 109228 | F195: 8 | G195: SEMESTRAL | H195: $17,889,000 | I195: 5.95% | J195: $18,953,000
B196: IMETR | C196: INGENIERÍA MECATRÓNICA | D196: Admitidos durante el año 2025 | E196: 109228 | F196: 8 | G196: SEMESTRAL | H196: $18,059,000 | I196: 5.95% | J196: $19,134,000
B197: IMETR | C197: INGENIERÍA MECATRÓNICA | D197: Admitidos a partir del año 2026 | E197: 109228 | F197: 8 | G197: SEMESTRAL | H197: $18,059,000 | I197: 6.51% | J197: =+ROUND((H197*I197)+H197,-3) -> $19,235,000
B198: IREDT | C198: INGENIERÍA EN REDES Y TELECOMUNICACIONES | D198: Admitidos hasta el año 2023 | E198: 108910 | F198: 8 | G198: SEMESTRAL | H198: $17,728,000 | I198: 5.95% | J198: $18,783,000
B199: IREDT | C199: INGENIERÍA EN REDES Y TELECOMUNICACIONES | D199: Admitidos durante el año 2024 | E199: 108910 | F199: 8 | G199: SEMESTRAL | H199: $17,889,000 | I199: 5.95% | J199: $18,953,000
B200: IREDT | C200: INGENIERÍA EN REDES Y TELECOMUNICACIONES | D200: Admitidos durante el año 2025 | E200: 108910 | F200: 8 | G200: SEMESTRAL | H200: $18,059,000 | I200: 5.95% | J200: $19,134,000
B201: IREDT | C201: INGENIERÍA EN REDES Y TELECOMUNICACIONES | D201: Admitidos a partir del año 2026 | E201: 108910 | F201: 8 | G201: SEMESTRAL | H201: $18,059,000 | I201: 6.51% | J201: =+ROUND((H201*I201)+H201,-3) -> $19,235,000
B202: ISIST | C202: INGENIERÍA DE SISTEMAS | D202: Admitidos hasta el año 2023 | E202: 3079 | F202: 8 | G202: SEMESTRAL | H202: $17,728,000 | I202: 5.95% | J202: $18,783,000
B203: ISIST | C203: INGENIERÍA DE SISTEMAS | D203: Admitidos durante el año 2024 | E203: 3079 | F203: 8 | G203: SEMESTRAL | H203: $17,889,000 | I203: 5.95% | J203: $18,953,000
B204: ISIST | C204: INGENIERÍA DE SISTEMAS | D204: Admitidos durante el año 2025 | E204: 3079 | F204: 8 | G204: SEMESTRAL | H204: $18,059,000 | I204: 5.95% | J204: $19,134,000
B205: ISIST | C205: INGENIERÍA DE SISTEMAS | D205: Admitidos a partir del año 2026 | E205: 3079 | F205: 8 | G205: SEMESTRAL | H205: $18,059,000 | I205: 6.51% | J205: =+ROUND((H205*I205)+H205,-3) -> $19,235,000
C207: MEDICINA
B208: MEDIC | C208: MEDICINA | D208: Admitidos hasta el año 2018 | E208: 55178 | F208: 12 | G208: SEMESTRAL | H208: $31,195,000 | I208: 5.95% | J208: =+ROUND((H208*I208)+H208,-3) -> $33,051,000
B209: MEDIC | C209: MEDICINA | D209: Admitidos durante el año 2019 | E209: 55178 | F209: 12 | G209: SEMESTRAL | H209: $32,980,000 | I209: 5.95% | J209: $34,942,000
B210: MEDIC | C210: MEDICINA | D210: Admitidos hasta el año 2023 | E210: 55178 | F210: 12 | G210: SEMESTRAL | H210: $34,401,000 | I210: 5.95% | J210: $36,448,000
B211: MEDIC | C211: MEDICINA | D211: Admitidos durante el año 2024 | E211: 55178 | F211: 12 | G211: SEMESTRAL | H211: $34,712,000 | I211: 5.95% | J211: $36,777,000
B212: MEDIC | C212: MEDICINA | D212: Admitidos durante el año 2025 | E212: 55178 | F212: 12 | G212: SEMESTRAL | H212: $35,041,000 | I212: 5.95% | J212: $37,126,000
B213: MEDIC | C213: MEDICINA | D213: Admitidos a partir del año 2026 | E213: 55178 | F213: 12 | G213: SEMESTRAL | H213: $35,041,000 | I213: 6.51% | J213: $37,322,000
C215: ODONTOLOGIA
B216: ODONT | C216: ODONTOLOGÍA | D216: Admitidos hasta el año 2023 | E216: 947 | F216: 10 | G216: SEMESTRAL | H216: $17,367,000 | I216: 5.95% | J216: =+ROUND((H216*I216)+H216,-3) -> $18,400,000
B217: ODONT | C217: ODONTOLOGÍA | D217: Admitidos durante el año 2024 | E217: 947 | F217: 10 | G217: SEMESTRAL | H217: $17,524,000 | I217: 5.95% | J217: =+ROUND((H217*I217)+H217,-3) -> $18,567,000
B218: ODONT | C218: ODONTOLOGÍA | D218: Admitidos durante el año 2025 | E218: 947 | F218: 10 | G218: SEMESTRAL | H218: $17,691,000 | I218: 5.95% | J218: =+ROUND((H218*I218)+H218,-3) -> $18,744,000
B219: ODONT | C219: ODONTOLOGÍA | D219: Admitidos a partir del año 2026 | E219: 947 | F219: 10 | G219: SEMESTRAL | H219: $17,691,000 | I219: 6.51% | J219: =+ROUND((H219*I219)+H219,-3) -> $18,843,000
C221: PSICOLOGÍA
B222: PSICO | C222: PSICOLOGÍA | D222: Admitidos hasta el año 2023 | E222: 950 | F222: 8 | G222: SEMESTRAL | H222: $15,853,000 | I222: 5.95% | J222: =+ROUND((H222*I222)+H222,-3) -> $16,796,000
B223: PSICO | C223: PSICOLOGÍA | D223: Admitidos durante el año 2024 | E223: 950 | F223: 8 | G223: SEMESTRAL | H223: $15,996,000 | I223: 5.95% | J223: =+ROUND((H223*I223)+H223,-3) -> $16,948,000
B224: PSICO | C224: PSICOLOGÍA | D224: Admitidos durante el año 2025 | E224: 950 | F224: 8 | G224: SEMESTRAL | H224: $16,148,000 | I224: 5.95% | J224: =+ROUND((H224*I224)+H224,-3) -> $17,109,000
... 11 more rows

Sheet Valoresmatriculaspos2025_2026
A1: Volver al menú
B11: COD. SAE | C11: PROGRAMAS DE POSGRADO | D11: Admisión y Matrícula | E11: Código SNIES del Programa | F11: No. Semestres Programa | G11: Periodos de facturación | H11: Valor Matrícula Ordinaria 2025 | I11: % Incremento | J11: Valor Matrícula Ordinaria 2026
C12: ARQUITECTURA Y DISEÑO
B13: DGPEX | C13: ESPECIALIZACIÓN EN GERENCIA DE PROYECTOS DE DISEÑO | D13: Admitidos hasta el año 2025 | E13: 116400 | F13: 2 | G13: SEMESTRAL | H13: $13,244,000 | I13: 5.95% | J13: =+ROUND((H13*I13)+H13,-3) -> $14,032,000
B14: DGPEX | C14: ESPECIALIZACIÓN EN GERENCIA DE PROYECTOS DE DISEÑO | D14: Admitidos a partir del año 2026 | E14: 116400 | F14: 2 | G14: SEMESTRAL | H14: $13,244,000 | I14: 6.51% | J14: =+ROUND((H14*I14)+H14,-3) -> $14,106,000
B15: MAPAI | C15: MAESTRÍA EN ARQUITECTURA DEL PAISAJE | D15: Admitidos hasta el año 2026 | E15: Pendiente | F15: 3 | G15: SEMESTRAL | H15: $15,864,000 | I15: 0.00% | J15: $15,864,000
B16: MDIPS | C16: MAESTRÍA EN DISEÑO PARA LA INNOVACIÓN DE PRODUCTOS Y SERVICIOS | D16: Admitidos hasta el año 2023 | E16: 104902 | F16: 4 | G16: SEMESTRAL | H16: $16,173,000 | I16: 5.95% | J16: $17,135,000
B17: MDIPS | C17: MAESTRÍA EN DISEÑO PARA LA INNOVACIÓN DE PRODUCTOS Y SERVICIOS | D17: Admitidos durante el año 2024 | E17: 104902 | F17: 4 | G17: SEMESTRAL | H17: $16,320,000 | I17: 5.95% | J17: $17,291,000
B18: MDIPS | C18: MAESTRÍA EN DISEÑO PARA LA INNOVACIÓN DE PRODUCTOS Y SERVICIOS | D18: Admitidos durante el año 2025 | E18: 104902 | F18: 4 | G18: SEMESTRAL | H18: $16,474,000 | I18: 5.95% | J18: $17,454,000
B19: MDIPS | C19: MAESTRÍA EN DISEÑO PARA LA INNOVACIÓN DE PRODUCTOS Y SERVICIOS | D19: Admitidos a partir del año 2026 | E19: 104902 | F19: 4 | G19: SEMESTRAL | H19: $16,474,000 | I19: 6.51% | J19: =+ROUND((H19*I19)+H19,-3) -> $17,546,000
B20: MINVC | C20: MAESTRÍA EN INNOVACIÓN EN LA CONSTRUCCIÓN | D20: Admitidos hasta el año 2026 | E20: 117625 | F20: 3 | G20: SEMESTRAL | H20: $16,379,000 | I20: 0.00% | J20: =+ROUND((H20*I20)+H20,-3) -> $16,379,000
B21: MPART | C21: MAESTRÍA EN PAISAJES ARTIFICIALES | D21: Admitidos hasta el año 2026 | E21: 108476 | F21: 4 | G21: SEMESTRAL | H21: $16,474,000 | I21: 6.51% | J21: =+ROUND((H21*I21)+H21,-3) -> $17,546,000
B22: MPLUR | C22: MAESTRÍA EN PLANEACIÓN URBANA Y REGIONAL | D22: Admitidos hasta el año 2023 | E22: 1033 | F22: 4 | G22: SEMESTRAL | H22: $15,332,000 | I22: 5.95% | J22: $16,244,000
B23: MPLUR | C23: MAESTRÍA EN PLANEACIÓN URBANA Y REGIONAL | D23: Admitidos durante el año 2024 | E23: 1033 | F23: 4 | G23: SEMESTRAL | H23: $15,470,000 | I23: 5.95% | J23: $16,390,000
B24: MPLUR | C24: MAESTRÍA EN PLANEACIÓN URBANA Y REGIONAL | D24: Admitidos durante el año 2025 | E24: 1033 | F24: 4 | G24: SEMESTRAL | H24: $15,617,000 | I24: 5.95% | J24: $16,546,000
B25: MPLUR | C25: MAESTRÍA EN PLANEACIÓN URBANA Y REGIONAL | D25: Admitidos a partir del año 2026 | E25: 1033 | F25: 4 | G25: SEMESTRAL | H25: $15,617,000 | I25: 6.51% | J25: =+ROUND((H25*I25)+H25,-3) -> $16,634,000
C27: ARTES
B28: MCAUD | C28: MAESTRÍA EN CREACIÓN AUDIOVISUAL | D28: Admitidos hasta el año 2023 | E28: 104901 | F28: 4 | G28: SEMESTRAL | H28: $15,483,000 | I28: 5.95% | J28: =+ROUND((H28*I28)+H28,-3) -> $16,404,000
B29: MCAUD | C29: MAESTRÍA EN CREACIÓN AUDIOVISUAL | D29: Admitidos durante el año 2024 | E29: 104901 | F29: 4 | G29: SEMESTRAL | H29: $15,623,000 | I29: 5.95% | J29: $16,553,000
B30: MCAUD | C30: MAESTRÍA EN CREACIÓN AUDIOVISUAL | D30: Admitidos durante el año 2025 | E30: 104901 | F30: 4 | G30: SEMESTRAL | H30: $15,771,000 | I30: 5.95% | J30: $16,709,000
B31: MCAUD | C31: MAESTRÍA EN CREACIÓN AUDIOVISUAL | D31: Admitidos a partir del año 2026 | E31: 104901 | F31: 4 | G31: SEMESTRAL | H31: $15,771,000 | I31: 6.51% | J31: =+ROUND((H31*I31)+H31,-3) -> $16,798,000
B32: MMUSI | C32: MAESTRÍA EN MÚSICA | D32: Admitidos hasta el año 2023 | E32: 101520 | F32: 4 | G32: SEMESTRAL | H32: $15,280,000 | I32: 5.95% | J32: $16,189,000
B33: MMUSI | C33: MAESTRÍA EN MÚSICA | D33: Admitidos durante el año 2024 | E33: 101520 | F33: 4 | G33: SEMESTRAL | H33: $15,418,000 | I33: 5.95% | J33: $16,335,000
B34: MMUSI | C34: MAESTRÍA EN MÚSICA | D34: Admitidos durante el año 2025 | E34: 101520 | F34: 4 | G34: SEMESTRAL | H34: $15,565,000 | I34: 5.95% | J34: $16,491,000
B35: MMUSI | C35: MAESTRÍA EN MÚSICA | D35: Admitidos a partir del año 2026 | E35: 101520 | F35: 4 | G35: SEMESTRAL | H35: $15,565,000 | I35: 6.51% | J35: =+ROUND((H35*I35)+H35,-3) -> $16,578,000
C37: CIENCIAS
B38: DCYTM | C38: DOCTORADO EN CIENCIA Y TECNOLOGÍA DE MATERIALES | D38: Admitidos hasta el año 2023 | E38: 108267 | F38: 8 | G38: SEMESTRAL | H38: $19,402,000 | I38: 5.95% | J38: =+ROUND((H38*I38)+H38,-3) -> $20,556,000
B39: DCYTM | C39: DOCTORADO EN CIENCIA Y TECNOLOGÍA DE MATERIALES | D39: Admitidos durante el año 2024 | E39: 108267 | F39: 8 | G39: SEMESTRAL | H39: $19,578,000 | I39: 5.95% | J39: $20,743,000
B40: DCYTM | C40: DOCTORADO EN CIENCIA Y TECNOLOGÍA DE MATERIALES | D40: Admitidos durante el año 2025 | E40: 108267 | F40: 8 | G40: SEMESTRAL | H40: $19,764,000 | I40: 5.95% | J40: $20,940,000
B41: DCYTM | C41: DOCTORADO EN CIENCIA Y TECNOLOGÍA DE MATERIALES | D41: Admitidos a partir del año 2026 | E41: 108267 | F41: 8 | G41: SEMESTRAL | H41: $19,764,000 | I41: 6.51% | J41: =+ROUND((H41*I41)+H41,-3) -> $21,051,000
B42: DCSB | C42: DOCTORADO EN CIENCIAS BIOLÓGICAS | D42: Admitidos hasta el año 2023 | E42: 5331 | F42: 8 | G42: SEMESTRAL | H42: $14,489,000 | I42: 5.95% | J42: $15,351,000
B43: DCSB | C43: DOCTORADO EN CIENCIAS BIOLÓGICAS | D43: Admitidos durante el año 2024 | E43: 5331 | F43: 8 | G43: SEMESTRAL | H43: $14,619,000 | I43: 5.95% | J43: $15,489,000
B44: DCSB | C44: DOCTORADO EN CIENCIAS BIOLÓGICAS | D44: Admitidos durante el año 2025 | E44: 5331 | F44: 8 | G44: SEMESTRAL | H44: $14,758,000 | I44: 5.95% | J44: $15,636,000
B45: DCSB | C45: DOCTORADO EN CIENCIAS BIOLÓGICAS | D45: Admitidos a partir del año 2026 | E45: 5331 | F45: 8 | G45: SEMESTRAL | H45: $14,758,000 | I45: 6.51% | J45: =+ROUND((H45*I45)+H45,-3) -> $15,719,000
B46: EAQI | C46: ESPECIALIZACIÓN EN ANÁLISIS QUÍMICO INSTRUMENTAL | D46: Admitidos hasta el año 2025 | E46: 4420 | F46: 2 | G46: SEMESTRAL | H46: $11,957,000 | I46: 5.95% | J46: $12,668,000
B47: EAQI | C47: ESPECIALIZACIÓN EN ANÁLISIS QUÍMICO INSTRUMENTAL | D47: Admitidos a partir del año 2026 | E47: 4420 | F47: 2 | G47: SEMESTRAL | H47: $11,957,000 | I47: 6.51% | J47: =+ROUND((H47*I47)+H47,-3) -> $12,735,000
B48: EHLBS | C48: ESPECIALIZACIÓN EN HEMATOLOGÍA EN EL LABORATORIO CLÍNICO Y MANEJO DEL BANCO DE SANGRE | D48: Admitidos hasta el año 2025 | E48: 3095 | F48: 2 | G48: SEMESTRAL | H48: $12,541,000 | I48: 5.95% | J48: $13,287,000
B49: EHLBS | C49: ESPECIALIZACIÓN EN HEMATOLOGÍA EN EL LABORATORIO CLÍNICO Y MANEJO DEL BANCO DE SANGRE | D49: Admitidos a partir del año 2026 | E49: 3095 | F49: 2 | G49: SEMESTRAL | H49: $12,541,000 | I49: 6.51% | J49: =+ROUND((H49*I49)+H49,-3) -> $13,357,000
B50: EMICM | C50: ESPECIALIZACIÓN EN MICROBIOLOGÍA MÉDICA | D50: Admitidos hasta el año 2025 | E50: 5322 | F50: 2 | G50: SEMESTRAL | H50: $13,879,000 | I50: 5.95% | J50: $14,705,000
B51: EMICM | C51: ESPECIALIZACIÓN EN MICROBIOLOGÍA MÉDICA | D51: Admitidos a partir del año 2026 | E51: 5322 | F51: 2 | G51: SEMESTRAL | H51: $13,879,000 | I51: 6.51% | J51: =+ROUND((H51*I51)+H51,-3) -> $14,783,000
B52: MACIB | C52: MAESTRÍA EN CIENCIAS BIOLÓGICAS | D52: Admitidos hasta el año 2023 | E52: 19769 | F52: 4 | G52: SEMESTRAL | H52: $15,122,000 | I52: 5.95% | J52: $16,022,000
B53: MACIB | C53: MAESTRÍA EN CIENCIAS BIOLÓGICAS | D53: Admitidos durante el año 2024 | E53: 19769 | F53: 4 | G53: SEMESTRAL | H53: $15,259,000 | I53: 5.95% | J53: $16,167,000
B54: MACIB | C54: MAESTRÍA EN CIENCIAS BIOLÓGICAS | D54: Admitidos durante el año 2025 | E54: 19769 | F54: 4 | G54: SEMESTRAL | H54: $15,404,000 | I54: 5.95% | J54: $16,321,000
B55: MACIB | C55: MAESTRÍA EN CIENCIAS BIOLÓGICAS | D55: Admitidos a partir del año 2026 | E55: 19769 | F55: 4 | G55: SEMESTRAL | H55: $15,404,000 | I55: 6.51% | J55: =+ROUND((H55*I55)+H55,-3) -> $16,407,000
B56: MCILC | C56: MAESTRÍA EN CIENCIAS DEL LABORATORIO CLÍNICO | D56: Admitidos hasta el año 2023 | E56: 108755 | F56: 3 | G56: SEMESTRAL | H56: $12,339,000 | I56: 5.95% | J56: $13,073,000
B57: MCILC | C57: MAESTRÍA EN CIENCIAS DEL LABORATORIO CLÍNICO | D57: Admitidos durante el año 2024 | E57: 108755 | F57: 3 | G57: SEMESTRAL | H57: $12,451,000 | I57: 5.95% | J57: $13,192,000
B58: MCILC | C58: MAESTRÍA EN CIENCIAS DEL LABORATORIO CLÍNICO | D58: Admitidos durante el año 2025 | E58: 108755 | F58: 3 | G58: SEMESTRAL | H58: $12,569,000 | I58: 5.95% | J58: $13,317,000
B59: MCILC | C59: MAESTRÍA EN CIENCIAS DEL LABORATORIO CLÍNICO | D59: Admitidos a partir del año 2026 | E59: 108755 | F59: 3 | G59: SEMESTRAL | H59: $12,569,000 | I59: 6.51% | J59: =+ROUND((H59*I59)+H59,-3) -> $13,387,000
B60: MFIME | C60: MAESTRÍA EN FÍSICA MÉDICA | D60: Admitidos hasta el año 2023 | E60: 101675 | F60: 4 | G60: SEMESTRAL | H60: $15,189,000 | I60: 5.95% | J60: $16,093,000
B61: MFIME | C61: MAESTRÍA EN FÍSICA MÉDICA | D61: Admitidos durante el año 2024 | E61: 101675 | F61: 4 | G61: SEMESTRAL | H61: $15,326,000 | I61: 5.95% | J61: $16,238,000
B62: MFIME | C62: MAESTRÍA EN FÍSICA MÉDICA | D62: Admitidos durante el año 2025 | E62: 101675 | F62: 4 | G62: SEMESTRAL | H62: $15,471,000 | I62: 5.95% | J62: $16,392,000
B63: MFIME | C63: MAESTRÍA EN FÍSICA MÉDICA | D63: Admitidos a partir del año 2026 | E63: 101675 | F63: 4 | G63: SEMESTRAL | H63: $15,471,000 | I63: 6.51% | J63: =+ROUND((H63*I63)+H63,-3) -> $16,478,000
B64: MMATE | C64: MAESTRÍA EN MATEMÁTICAS | D64: Admitidos hasta el año 2023 | E64: 105864 | F64: 4 | G64: SEMESTRAL | H64: $12,339,000 | I64: 5.95% | J64: $13,073,000
B65: MMATE | C65: MAESTRÍA EN MATEMÁTICAS | D65: Admitidos durante el año 2024 | E65: 105864 | F65: 4 | G65: SEMESTRAL | H65: $12,451,000 | I65: 5.95% | J65: $13,192,000
B66: MMATE | C66: MAESTRÍA EN MATEMÁTICAS | D66: Admitidos durante el año 2025 | E66: 105864 | F66: 4 | G66: SEMESTRAL | H66: $12,569,000 | I66: 5.95% | J66: $13,317,000
B67: MMATE | C67: MAESTRÍA EN MATEMÁTICAS | D67: Admitidos a partir del año 2026 | E67: 105864 | F67: 4 | G67: SEMESTRAL | H67: $12,569,000 | I67: 6.51% | J67: =+ROUND((H67*I67)+H67,-3) -> $13,387,000
B68: MRECO | C68: MAESTRÍA EN RESTAURACIÓN ECOLÓGICA | D68: Admitidos hasta el año 2023 | E68: 107419 | F68: 4 | G68: SEMESTRAL | H68: $15,291,000 | I68: 5.95% | J68: $16,201,000
B69: MRECO | C69: MAESTRÍA EN RESTAURACIÓN ECOLÓGICA | D69: Admitidos durante el año 2024 | E69: 107419 | F69: 4 | G69: SEMESTRAL | H69: $15,429,000 | I69: 5.95% | J69: $16,347,000
B70: MRECO | C70: MAESTRÍA EN RESTAURACIÓN ECOLÓGICA | D70: Admitidos durante el año 2025 | E70: 107419 | F70: 4 | G70: SEMESTRAL | H70: $15,575,000 | I70: 5.95% | J70: $16,502,000
B71: MRECO | C71: MAESTRÍA EN RESTAURACIÓN ECOLÓGICA | D71: Admitidos a partir del año 2026 | E71: 107419 | F71: 4 | G71: SEMESTRAL | H71: $15,575,000 | I71: 6.51% | J71: =+ROUND((H71*I71)+H71,-3) -> $16,589,000
C73: CIENCIAS ECONÓMICAS Y ADMINISTRATIVAS
B74: DECON | C74: DOCTORADO EN ECONOMÍA | D74: Admitidos hasta el año 2026 | E74: 107650 | F74: 8 | G74: SEMESTRAL | H74: $19,898,000 | I74: 0.00% | J74: =+ROUND((H74*I74)+H74,-3) -> $19,898,000
B75: EASSS | C75: ESPECIALIZACIÓN EN ADMINISTRACIÓN DE SALUD | D75: Admitidos hasta el año 2025 | E75: 107886 | F75: 2 | G75: SEMESTRAL | H75: $13,520,000 | I75: 5.95% | J75: =+ROUND((H75*I75)+H75,-3) -> $14,324,000
B76: EASSS | C76: ESPECIALIZACIÓN EN ADMINISTRACIÓN DE SALUD | D76: Admitidos a partir del año 2026 | E76: 107886 | F76: 2 | G76: SEMESTRAL | H76: $13,520,000 | I76: 6.51% | J76: =+ROUND((H76*I76)+H76,-3) -> $14,400,000
B77: ASEGC | C77: ESPECIALIZACIÓN EN ASEGURAMIENTO Y CONTROL INTERNO | D77: Admitidos hasta el año 2025 | E77: 17772 | F77: 2 | G77: SEMESTRAL | H77: $14,294,000 | I77: 5.95% | J77: =+ROUND((H77*I77)+H77,-3) -> $15,144,000
B78: ASEGC | C78: ESPECIALIZACIÓN EN ASEGURAMIENTO Y CONTROL INTERNO | D78: Admitidos a partir del año 2026 | E78: 17772 | F78: 2 | G78: SEMESTRAL | H78: $14,294,000 | I78: 6.51% | J78: =+ROUND((H78*I78)+H78,-3) -> $15,225,000
B79: ASEGB | C79: ESPECIALIZACIÓN EN ASEGURAMIENTO Y CONTROL INTERNO | D79: Admitidos hasta el año 2026 | E79: 108450 | F79: 2 | G79: SEMESTRAL | H79: $14,227,000 | I79: 6.51% | J79: =+ROUND((H79*I79)+H79,-3) -> $15,153,000
B80: COFIB | C80: ESPECIALIZACIÓN EN CONTABILIDAD FINANCIERA INTERNACIONAL | D80: Admitidos hasta el año 2026 | E80: 104906 | F80: 2 | G80: SEMESTRAL | H80: $14,227,000 | I80: 6.51% | J80: =+ROUND((H80*I80)+H80,-3) -> $15,153,000
B81: COFIN | C81: ESPECIALIZACIÓN EN CONTABILIDAD FINANCIERA INTERNACIONAL | D81: Admitidos hasta el año 2025 | E81: 17770 | F81: 2 | G81: SEMESTRAL | H81: $14,294,000 | I81: 5.95% | J81: =+ROUND((H81*I81)+H81,-3) -> $15,144,000
B82: COFIN | C82: ESPECIALIZACIÓN EN CONTABILIDAD FINANCIERA INTERNACIONAL | D82: Admitidos a partir del año 2026 | E82: 17770 | F82: 2 | G82: SEMESTRAL | H82: $14,294,000 | I82: 6.51% | J82: =+ROUND((H82*I82)+H82,-3) -> $15,225,000
B83: COFBU | C83: ESPECIALIZACIÓN EN CONTABILIDAD FINANCIERA INTERNACIONAL | D83: Admitidos hasta el año 2026 | E83: 108581 | F83: 2 | G83: SEMESTRAL | H83: $14,227,000 | I83: 6.51% | J83: =+ROUND((H83*I83)+H83,-3) -> $15,153,000
B84: ECGER | C84: ESPECIALIZACIÓN EN CONTABILIDAD GERENCIAL | D84: Admitidos hasta el año 2025 | E84: 17771 | F84: 2 | G84: SEMESTRAL | H84: $13,380,000 | I84: 5.95% | J84: =+ROUND((H84*I84)+H84,-3) -> $14,176,000
B85: ECGER | C85: ESPECIALIZACIÓN EN CONTABILIDAD GERENCIAL | D85: Admitidos a partir del año 2026 | E85: 17771 | F85: 2 | G85: SEMESTRAL | H85: $13,380,000 | I85: 6.51% | J85: =+ROUND((H85*I85)+H85,-3) -> $14,251,000
B86: ECNOE | C86: ESPECIALIZACIÓN EN ECONOMÍA | D86: Admitidos hasta el año 2025 | E86: 115976 | F86: 2 | G86: SEMESTRAL | H86: $14,030,000 | I86: 5.95% | J86: =+ROUND((H86*I86)+H86,-3) -> $14,865,000
B87: ECNOE | C87: ESPECIALIZACIÓN EN ECONOMÍA | D87: Admitidos a partir del año 2026 | E87: 115976 | F87: 2 | G87: SEMESTRAL | H87: $14,030,000 | I87: 6.51% | J87: =+ROUND((H87*I87)+H87,-3) -> $14,943,000
B88: EGCSS | C88: ESPECIALIZACIÓN EN GERENCIA DE LA CALIDAD DE LOS SERVICIOS DE SALUD | D88: Admitidos hasta el año 2025 | E88: 51799 | F88: 2 | G88: SEMESTRAL | H88: $13,520,000 | I88: 5.95% | J88: =+ROUND((H88*I88)+H88,-3) -> $14,324,000
B89: EGCSS | C89: ESPECIALIZACIÓN EN GERENCIA DE LA CALIDAD DE LOS SERVICIOS DE SALUD | D89: Admitidos a partir del año 2026 | E89: 51799 | F89: 2 | G89: SEMESTRAL | H89: $13,520,000 | I89: 6.51% | J89: =+ROUND((H89*I89)+H89,-3) -> $14,400,000
B90: EGTH | C90: ESPECIALIZACIÓN EN GERENCIA DEL TALENTO HUMANO | D90: Admitidos hasta el año 2024 | E90: 8573 | F90: 2 | G90: SEMESTRAL | H90: $19,722,000 | I90: 5.95% | J90: $20,895,000
B91: EGTH | C91: ESPECIALIZACIÓN EN GERENCIA DEL TALENTO HUMANO | D91: Admitidos durante el año 2025 | E91: 8573 | F91: 2 | G91: SEMESTRAL | H91: $19,458,000 | I91: 5.95% | J91: =+ROUND((H91*I91)+H91,-3) -> $20,616,000
B92: EGTH | C92: ESPECIALIZACIÓN EN GERENCIA DEL TALENTO HUMANO | D92: Admitidos a partir del año 2026 | E92: 8573 | F92: 2 | G92: SEMESTRAL | H92: $19,458,000 | I92: 6.51% | J92: =+ROUND((H92*I92)+H92,-3) -> $20,725,000
B93: EGTEC | C93: ESPECIALIZACIÓN EN GERENCIA ESTRATÉGICA DE LA INNOVACIÓN | D93: Admitidos hasta el año 2025 | E93: 107981 | F93: 2 | G93: SEMESTRAL | H93: $19,458,000 | I93: 5.95% | J93: =+ROUND((H93*I93)+H93,-3) -> $20,616,000
B94: EGTEC | C94: ESPECIALIZACIÓN EN GERENCIA ESTRATÉGICA DE LA INNOVACIÓN | D94: Admitidos a partir del año 2026 | E94: 107981 | F94: 2 | G94: SEMESTRAL | H94: $19,458,000 | I94: 6.51% | J94: =+ROUND((H94*I94)+H94,-3) -> $20,725,000
B95: SGFIN | C95: ESPECIALIZACIÓN EN GERENCIA FINANCIERA | D95: Admitidos hasta el año 2025 | E95: 8124 | F95: 2 | G95: SEMESTRAL | H95: $19,909,000 | I95: 5.95% | J95: =+ROUND((H95*I95)+H95,-3) -> $21,094,000
B96: SGFIN | C96: ESPECIALIZACIÓN EN GERENCIA FINANCIERA | D96: Admitidos a partir del año 2026 | E96: 8124 | F96: 2 | G96: SEMESTRAL | H96: $19,909,000 | I96: 6.51% | J96: =+ROUND((H96*I96)+H96,-3) -> $21,205,000
B97: EGHOS | C97: ESPECIALIZACIÓN EN GERENCIA HOSPITALARIA | D97: Admitidos hasta el año 2025 | E97: 1007 | F97: 2 | G97: SEMESTRAL | H97: $13,520,000 | I97: 5.95% | J97: =+ROUND((H97*I97)+H97,-3) -> $14,324,000
B98: EGHOS | C98: ESPECIALIZACIÓN EN GERENCIA HOSPITALARIA | D98: Admitidos a partir del año 2026 | E98: 1007 | F98: 2 | G98: SEMESTRAL | H98: $13,520,000 | I98: 6.51% | J98: =+ROUND((H98*I98)+H98,-3) -> $14,400,000
B99: ESGIN | C99: ESPECIALIZACIÓN EN INTELIGENCIA DE LOS NEGOCIOS INTERNACIONALES | D99: Admitidos hasta el año 2025 | E99: 118152 | F99: 2 | G99: SEMESTRAL | H99: $19,458,000 | I99: 5.95% | J99: =+ROUND((H99*I99)+H99,-3) -> $20,616,000
B100: ESGIN | C100: ESPECIALIZACIÓN EN INTELIGENCIA DE LOS NEGOCIOS INTERNACIONALES | D100: Admitidos a partir del año 2026 | E100: 118152 | F100: 2 | G100: SEMESTRAL | H100: $19,458,000 | I100: 6.51% | J100: =+ROUND((H100*I100)+H100,-3) -> $20,725,000
B101: EGMER | C101: ESPECIALIZACIÓN EN MARKETING ESTRATÉGICO | D101: Admitidos hasta el año 2024 | E101: 107710 | F101: 2 | G101: SEMESTRAL | H101: $19,722,000 | I101: 5.95% | J101: =+ROUND((H101*I101)+H101,-3) -> $20,895,000
B102: EGMER | C102: ESPECIALIZACIÓN EN MARKETING ESTRATÉGICO | D102: Admitidos durante el año 2025 | E102: 107710 | F102: 2 | G102: SEMESTRAL | H102: $19,909,000 | I102: 5.95% | J102: =+ROUND((H102*I102)+H102,-3) -> $21,094,000
B103: EGMER | C103: ESPECIALIZACIÓN EN MARKETING ESTRATÉGICO | D103: Admitidos a partir del año 2026 | E103: 107710 | F103: 2 | G103: SEMESTRAL | H103: $19,909,000 | I103: 6.51% | J103: =+ROUND((H103*I103)+H103,-3) -> $21,205,000
B104: REFIS | C104: ESPECIALIZACIÓN EN REVISORÍA FISCAL | D104: Admitidos hasta el año 2025 | E104: 10940 | F104: 2 | G104: SEMESTRAL | H104: $14,294,000 | I104: 5.95% | J104: =+ROUND((H104*I104)+H104,-3) -> $15,144,000
B105: REFIS | C105: ESPECIALIZACIÓN EN REVISORÍA FISCAL | D105: Admitidos a partir del año 2026 | E105: 10940 | F105: 2 | G105: SEMESTRAL | H105: $14,294,000 | I105: 6.51% | J105: =+ROUND((H105*I105)+H105,-3) -> $15,225,000
B106: MADMI | C106: MAESTRÍA EN ADMINISTRACIÓN | D106: Admitidos hasta el año 2023 | E106: 101893 | F106: 4 | G106: SEMESTRAL | H106: $29,389,000 | I106: 5.95% | J106: $31,138,000
B107: MADMI | C107: MAESTRÍA EN ADMINISTRACIÓN | D107: Admitidos durante el año 2024 | E107: 101893 | F107: 4 | G107: SEMESTRAL | H107: $29,655,000 | I107: 5.95% | J107: $31,419,000
B108: MADMI | C108: MAESTRÍA EN ADMINISTRACIÓN | D108: Admitidos durante el año 2025 | E108: 101893 | F108: 4 | G108: SEMESTRAL | H108: $29,258,000 | I108: 5.95% | J108: =+ROUND((H108*I108)+H108,-3) -> $30,999,000
B109: MADMI | C109: MAESTRÍA EN ADMINISTRACIÓN | D109: Admitidos a partir del año 2026 | E109: 101893 | F109: 4 | G109: SEMESTRAL | H109: $29,258,000 | I109: 6.51% | J109: =+ROUND((H109*I109)+H109,-3) -> $31,163,000
B110: MADSA | C110: MAESTRÍA EN ADMINISTRACIÓN DE SALUD | D110: Admitidos hasta el año 2024 | E110: 53795 | F110: 3 | G110: SEMESTRAL | H110: $18,049,000 | I110: 5.95% | J110: $19,123,000
B111: MADSA | C111: MAESTRÍA EN ADMINISTRACIÓN DE SALUD | D111: Admitidos durante el año 2025 | E111: 53795 | F111: 3 | G111: SEMESTRAL | H111: $14,560,000 | I111: 5.95% | J111: =+ROUND((H111*I111)+H111,-3) -> $15,426,000
B112: MADSA | C112: MAESTRÍA EN ADMINISTRACIÓN DE SALUD | D112: Admitidos a partir del año 2026 | E112: 53795 | F112: 3 | G112: SEMESTRAL | H112: $14,560,000 | I112: 6.51% | J112: =+ROUND((H112*I112)+H112,-3) -> $15,508,000
B113: MADME | C113: MAESTRÍA EN ADMINISTRACIÓN - MODALIDAD EJECUTIVA | D113: Admitidos hasta el primer periodo del año 2024 | E113: 101893 | F113: 3 | G113: SEMESTRAL | H113: $57,519,000 | I113: 5.95% | J113: $60,941,000
B114: MADME | C114: MAESTRÍA EN ADMINISTRACIÓN - MODALIDAD EJECUTIVA | D114: Admitidos en el tercer periodo del 2024 | E114: 101893 | F114: 3 | G114: SEMESTRAL | H114: $54,567,000 | I114: 5.95% | J114: $57,814,000
B115: MADME | C115: MAESTRÍA EN ADMINISTRACIÓN - MODALIDAD EJECUTIVA | D115: Admitidos durante el año 2025 | E115: 101893 | F115: 3 | G115: SEMESTRAL | H115: $58,065,000 | I115: 0.00% | J115: $58,065,000
B116: MADME | C116: MAESTRÍA EN ADMINISTRACIÓN - MODALIDAD EJECUTIVA | D116: Admitidos a partir del año 2026 | E116: 101893 | F116: 3 | G116: SEMESTRAL | H116: $58,065,000 | I116: 6.51% | J116: =+ROUND((H116*I116)+H116,-3) -> $61,845,000
B117: MBFIN | C117: MAESTRÍA EN BANCA Y FINANZAS | D117: Admitidos hasta el año 2023 | E117: 109197 | F117: 3 | G117: SEMESTRAL | H117: $23,439,000 | I117: 5.95% | J117: $24,834,000
B118: MBFIN | C118: MAESTRÍA EN BANCA Y FINANZAS | D118: Admitidos durante el año 2024 | E118: 109197 | F118: 3 | G118: SEMESTRAL | H118: $23,652,000 | I118: 5.95% | J118: $25,059,000
B119: MBFIN | C119: MAESTRÍA EN BANCA Y FINANZAS | D119: Admitidos durante el año 2025 | E119: 109197 | F119: 3 | G119: SEMESTRAL | H119: $23,336,000 | I119: 5.95% | J119: =+ROUND((H119*I119)+H119,-3) -> $24,724,000
B120: MBFIN | C120: MAESTRÍA EN BANCA Y FINANZAS | D120: Admitidos a partir del año 2026 | E120: 109197 | F120: 3 | G120: SEMESTRAL | H120: $23,336,000 | I120: 6.51% | J120: =+ROUND((H120*I120)+H120,-3) -> $24,855,000
B121: MECON | C121: MAESTRÍA EN ECONOMÍA | D121: Admitidos hasta el año 2023 | E121: 1027 | F121: 3 | G121: SEMESTRAL | H121: $18,108,000 | I121: 5.95% | J121: $19,185,000
B122: MECON | C122: MAESTRÍA EN ECONOMÍA | D122: Admitidos durante el año 2024 | E122: 1027 | F122: 3 | G122: SEMESTRAL | H122: $14,608,000 | I122: 5.95% | J122: $15,477,000
B123: MECON | C123: MAESTRÍA EN ECONOMÍA | D123: Admitidos durante el año 2025 | E123: 1027 | F123: 3 | G123: SEMESTRAL | H123: $14,746,000 | I123: 5.95% | J123: =+ROUND((H123*I123)+H123,-3) -> $15,623,000
B124: MECON | C124: MAESTRÍA EN ECONOMÍA | D124: Admitidos a partir del año 2026 | E124: 1027 | F124: 3 | G124: SEMESTRAL | H124: $14,746,000 | I124: 6.51% | J124: =+ROUND((H124*I124)+H124,-3) -> $15,706,000
B125: MESAL | C125: MAESTRÍA EN ECONOMÍA DE LA SALUD | D125: Admitidos hasta el año 2026 | E125: 105377 | F125: 4 | G125: SEMESTRAL | H125: $18,123,000 | I125: 4.00% | J125: =+ROUND((H125*I125)+H125,-3) -> $18,848,000
B126: MEINC | C126: MAESTRÍA EN ESTRATEGIA, INNOVACIÓN Y COMPETITIVIDAD | D126: Admitidos hasta el año 2023 | E126: 108829 | F126: 3 | G126: SEMESTRAL | H126: $23,439,000 | I126: 5.95% | J126: $24,834,000
B127: MEINC | C127: MAESTRÍA EN ESTRATEGIA, INNOVACIÓN Y COMPETITIVIDAD | D127: Admitidos durante el año 2024 | E127: 108829 | F127: 3 | G127: SEMESTRAL | H127: $23,652,000 | I127: 5.95% | J127: $25,059,000
B128: MEINC | C128: MAESTRÍA EN ESTRATEGIA, INNOVACIÓN Y COMPETITIVIDAD | D128: Admitidos durante el año 2025 | E128: 108829 | F128: 3 | G128: SEMESTRAL | H128: $23,336,000 | I128: 5.95% | J128: =+ROUND((H128*I128)+H128,-3) -> $24,724,000
B129: MEINC | C129: MAESTRÍA EN ESTRATEGIA, INNOVACIÓN Y COMPETITIVIDAD | D129: Admitidos a partir del año 2026 | E129: 108829 | F129: 3 | G129: SEMESTRAL | H129: $23,336,000 | I129: 6.51% | J129: =+ROUND((H129*I129)+H129,-3) -> $24,855,000
B130: MGRSS | C130: MAESTRÍA EN GERENCIA DE LA SOSTENIBILIDAD | D130: Admitidos hasta el año 2023 | E130: 110953 | F130: 3 | G130: SEMESTRAL | H130: $17,714,000 | I130: 5.95% | J130: $18,768,000
B131: MGRSS | C131: MAESTRÍA EN GERENCIA DE LA SOSTENIBILIDAD | D131: Admitidos durante el año 2024 | E131: 110953 | F131: 3 | G131: SEMESTRAL | H131: $17,874,000 | I131: 5.95% | J131: $18,938,000
B132: MGRSS | C132: MAESTRÍA EN GERENCIA DE LA SOSTENIBILIDAD | D132: Admitidos durante el año 2025 | E132: 110953 | F132: 3 | G132: SEMESTRAL | H132: $18,044,000 | I132: 5.95% | J132: =+ROUND((H132*I132)+H132,-3) -> $19,118,000
B133: MGRSS | C133: MAESTRÍA EN GERENCIA DE LA SOSTENIBILIDAD | D133: Admitidos a partir del año 2026 | E133: 110953 | F133: 3 | G133: SEMESTRAL | H133: $18,044,000 | I133: 6.51% | J133: =+ROUND((H133*I133)+H133,-3) -> $19,219,000
C135: CIENCIAS JURÍDICAS
B136: DDERC | C136: DOCTORADO EN CIENCIAS JURÍDICAS | D136: Admitidos hasta el año 2023 | E136: 53471 | F136: 8 | G136: SEMESTRAL | H136: $21,335,000 | I136: 5.95% | J136: =+ROUND((H136*I136)+H136,-3) -> $22,604,000
B137: DDERC | C137: DOCTORADO EN CIENCIAS JURÍDICAS | D137: Admitidos durante el año 2024 | E137: 53471 | F137: 8 | G137: SEMESTRAL | H137: $21,528,000 | I137: 5.95% | J137: $22,809,000
B138: DDERC | C138: DOCTORADO EN CIENCIAS JURÍDICAS | D138: Admitidos durante el año 2025 | E138: 53471 | F138: 8 | G138: SEMESTRAL | H138: $21,732,000 | I138: 5.95% | J138: $23,025,000
B139: DDERC | C139: DOCTORADO EN CIENCIAS JURÍDICAS | D139: Admitidos a partir del año 2026 | E139: 53471 | F139: 8 | G139: SEMESTRAL | H139: $21,732,000 | I139: 6.51% | J139: =+ROUND((H139*I139)+H139,-3) -> $23,147,000
B140: ESDAD | C140: ESPECIALIZACIÓN EN DERECHO ADMINISTRATIVO | D140: Admitidos hasta el año 2025 | E140: 7796 | F140: 2 | G140: SEMESTRAL | H140: $13,202,000 | I140: 5.95% | J140: $13,988,000
B141: ESDAD | C141: ESPECIALIZACIÓN EN DERECHO ADMINISTRATIVO | D141: Admitidos a partir del año 2026 | E141: 7796 | F141: 2 | G141: SEMESTRAL | H141: $13,202,000 | I141: 6.51% | J141: =+ROUND((H141*I141)+H141,-3) -> $14,061,000
B142: EDCOM | C142: ESPECIALIZACIÓN EN DERECHO COMERCIAL | D142: Admitidos hasta el año 2025 | E142: 1001 | F142: 2 | G142: SEMESTRAL | H142: $13,555,000 | I142: 5.95% | J142: $14,362,000
B143: EDCOM | C143: ESPECIALIZACIÓN EN DERECHO COMERCIAL | D143: Admitidos a partir del año 2026 | E143: 1001 | F143: 2 | G143: SEMESTRAL | H143: $13,555,000 | I143: 6.51% | J143: =+ROUND((H143*I143)+H143,-3) -> $14,437,000
B144: EDFAM | C144: ESPECIALIZACIÓN EN DERECHO DE FAMILIA | D144: Admitidos hasta el año 2025 | E144: 1002 | F144: 2 | G144: SEMESTRAL | H144: $13,202,000 | I144: 5.95% | J144: $13,988,000
B145: EDFAM | C145: ESPECIALIZACIÓN EN DERECHO DE FAMILIA | D145: Admitidos a partir del año 2026 | E145: 1002 | F145: 2 | G145: SEMESTRAL | H145: $13,202,000 | I145: 6.51% | J145: =+ROUND((H145*I145)+H145,-3) -> $14,061,000
B146: EDCCC | C146: ESPECIALIZACIÓN EN DERECHO DE LA COMPETENCIA | D146: Admitidos hasta el año 2026 | E146: 108258 | F146: 2 | G146: SEMESTRAL | H146: $13,328,000 | I146: 6.51% | J146: =+ROUND((H146*I146)+H146,-3) -> $14,196,000
B147: EDCLC | C147: ESPECIALIZACIÓN EN DERECHO DE LA COMPETENCIA | D147: Admitidos hasta el año 2025 | E147: 105154 | F147: 2 | G147: SEMESTRAL | H147: $13,555,000 | I147: 5.95% | J147: $14,362,000
B148: EDCLC | C148: ESPECIALIZACIÓN EN DERECHO DE LA COMPETENCIA | D148: Admitidos a partir del año 2026 | E148: 105154 | F148: 2 | G148: SEMESTRAL | H148: $13,555,000 | I148: 6.51% | J148: =+ROUND((H148*I148)+H148,-3) -> $14,437,000
B149: EDSSJ | C149: ESPECIALIZACIÓN EN DERECHO DE LA SEGURIDAD SOCIAL | D149: Admitidos hasta el año 2025 | E149: 15430 | F149: 2 | G149: SEMESTRAL | H149: $13,202,000 | I149: 5.95% | J149: $13,988,000
B150: EDSSJ | C150: ESPECIALIZACIÓN EN DERECHO DE LA SEGURIDAD SOCIAL | D150: Admitidos a partir del año 2026 | E150: 15430 | F150: 2 | G150: SEMESTRAL | H150: $13,202,000 | I150: 6.51% | J150: =+ROUND((H150*I150)+H150,-3) -> $14,061,000
B151: EDSEG | C151: ESPECIALIZACIÓN EN DERECHO DE SEGUROS | D151: Admitidos hasta el año 2025 | E151: 1005 | F151: 2 | G151: SEMESTRAL | H151: $13,555,000 | I151: 5.95% | J151: $14,362,000
B152: EDSEG | C152: ESPECIALIZACIÓN EN DERECHO DE SEGUROS | D152: Admitidos a partir del año 2026 | E152: 1005 | F152: 2 | G152: SEMESTRAL | H152: $13,555,000 | I152: 6.51% | J152: =+ROUND((H152*I152)+H152,-3) -> $14,437,000
B153: EDSEM | C153: ESPECIALIZACIÓN EN DERECHO DE SEGUROS | D153: Admitidos hasta el año 2025 | E153: 55101 | F153: 3 | G153: SEMESTRAL | H153: $9,042,000 | I153: 5.95% | J153: $9,580,000
B154: EDSEM | C154: ESPECIALIZACIÓN EN DERECHO DE SEGUROS | D154: Admitidos a partir del año 2026 | E154: 55101 | F154: 3 | G154: SEMESTRAL | H154: $9,042,000 | I154: 6.51% | J154: =+ROUND((H154*I154)+H154,-3) -> $9,631,000
B155: EDSOC | C155: ESPECIALIZACIÓN EN DERECHO DE SOCIEDADES | D155: Admitidos hasta el año 2025 | E155: 1006 | F155: 2 | G155: SEMESTRAL | H155: $13,038,000 | I155: 5.95% | J155: $13,814,000
B156: EDSOC | C156: ESPECIALIZACIÓN EN DERECHO DE SOCIEDADES | D156: Admitidos a partir del año 2026 | E156: 1006 | F156: 2 | G156: SEMESTRAL | H156: $13,038,000 | I156: 6.51% | J156: =+ROUND((H156*I156)+H156,-3) -> $13,887,000
B157: MECAP | C157: ESPECIALIZACIÓN EN DERECHO FINANCIERO Y DE MERCADO DE VALORES | D157: Admitidos hasta el año 2025 | E157: 106258 | F157: 2 | G157: SEMESTRAL | H157: $12,979,000 | I157: 5.95% | J157: =+ROUND((H157*I157)+H157,-3) -> $13,751,000
B158: MECAP | C158: ESPECIALIZACIÓN EN DERECHO FINANCIERO Y DE MERCADO DE VALORES | D158: Admitidos a partir del año 2026 | E158: 106258 | F158: 2 | G158: SEMESTRAL | H158: $12,979,000 | I158: 6.51% | J158: =+ROUND((H158*I158)+H158,-3) -> $13,824,000
B159: EDLAB | C159: ESPECIALIZACIÓN EN DERECHO LABORAL | D159: Admitidos hasta el año 2025 | E159: 1003 | F159: 2 | G159: SEMESTRAL | H159: $13,202,000 | I159: 5.95% | J159: $13,988,000
B160: EDLAB | C160: ESPECIALIZACIÓN EN DERECHO LABORAL | D160: Admitidos a partir del año 2026 | E160: 1003 | F160: 2 | G160: SEMESTRAL | H160: $13,202,000 | I160: 6.51% | J160: =+ROUND((H160*I160)+H160,-3) -> $14,061,000
B161: EDSCC | C161: ESPECIALIZACIÓN EN DERECHO SUSTANTIVO Y CONTENCIOSO CONSTITUCIONAL | D161: Admitidos hasta el año 2025 | E161: 3094 | F161: 2 | G161: SEMESTRAL | H161: $13,202,000 | I161: 5.95% | J161: $13,988,000
B162: EDSCC | C162: ESPECIALIZACIÓN EN DERECHO SUSTANTIVO Y CONTENCIOSO CONSTITUCIONAL | D162: Admitidos a partir del año 2026 | E162: 3094 | F162: 2 | G162: SEMESTRAL | H162: $13,202,000 | I162: 6.51% | J162: =+ROUND((H162*I162)+H162,-3) -> $14,061,000
B163: DTRIB | C163: ESPECIALIZACIÓN EN DERECHO TRIBUTARIO | D163: Admitidos hasta el año 2025 | E163: 20535 | F163: 2 | G163: SEMESTRAL | H163: $13,143,000 | I163: 5.95% | J163: $13,925,000
B164: DTRIB | C164: ESPECIALIZACIÓN EN DERECHO TRIBUTARIO | D164: Admitidos a partir del año 2026 | E164: 20535 | F164: 2 | G164: SEMESTRAL | H164: $13,143,000 | I164: 6.51% | J164: =+ROUND((H164*I164)+H164,-3) -> $13,999,000
B165: DURBA | C165: ESPECIALIZACIÓN EN DERECHO URBANÍSTICO | D165: Admitidos hasta el año 2025 | E165: 53061 | F165: 2 | G165: SEMESTRAL | H165: $13,555,000 | I165: 5.95% | J165: $14,362,000
B166: DURBA | C166: ESPECIALIZACIÓN EN DERECHO URBANÍSTICO | D166: Admitidos a partir del año 2026 | E166: 53061 | F166: 2 | G166: SEMESTRAL | H166: $13,555,000 | I166: 6.51% | J166: =+ROUND((H166*I166)+H166,-3) -> $14,437,000
B167: EDURB | C167: ESPECIALIZACIÓN EN DERECHO URBANÍSTICO | D167: Admitidos hasta el año 2025 | E167: 108894 | F167: 2 | G167: SEMESTRAL | H167: $13,555,000 | I167: 5.95% | J167: $14,362,000
B168: EDURB | C168: ESPECIALIZACIÓN EN DERECHO URBANÍSTICO | D168: Admitidos a partir del año 2026 | E168: 108894 | F168: 2 | G168: SEMESTRAL | H168: $13,555,000 | I168: 6.51% | J168: =+ROUND((H168*I168)+H168,-3) -> $14,437,000
B169: MDADM | C169: MAESTRÍA EN DERECHO ADMINISTRATIVO | D169: Admitidos hasta el año 2023 | E169: 104971 | F169: 4 | G169: SEMESTRAL | H169: $14,800,000 | I169: 5.95% | J169: $15,681,000
B170: MDADM | C170: MAESTRÍA EN DERECHO ADMINISTRATIVO | D170: Admitidos durante el año 2024 | E170: 104971 | F170: 4 | G170: SEMESTRAL | H170: $14,933,000 | I170: 5.95% | J170: $15,822,000
B171: MDADM | C171: MAESTRÍA EN DERECHO ADMINISTRATIVO | D171: Admitidos durante el año 2025 | E171: 104971 | F171: 4 | G171: SEMESTRAL | H171: $15,075,000 | I171: 5.95% | J171: $15,972,000
B172: MDADM | C172: MAESTRÍA EN DERECHO ADMINISTRATIVO | D172: Admitidos a partir del año 2026 | E172: 104971 | F172: 4 | G172: SEMESTRAL | H172: $15,075,000 | I172: 6.51% | J172: =+ROUND((H172*I172)+H172,-3) -> $16,056,000
B173: MDCON | C173: MAESTRÍA EN DERECHO CONSTITUCIONAL | D173: Admitidos hasta el año 2023 | E173: 104844 | F173: 4 | G173: SEMESTRAL | H173: $14,800,000 | I173: 5.95% | J173: $15,681,000
B174: MDCON | C174: MAESTRÍA EN DERECHO CONSTITUCIONAL | D174: Admitidos durante el año 2024 | E174: 104844 | F174: 4 | G174: SEMESTRAL | H174: $14,933,000 | I174: 5.95% | J174: $15,822,000
B175: MDCON | C175: MAESTRÍA EN DERECHO CONSTITUCIONAL | D175: Admitidos durante el año 2025 | E175: 104844 | F175: 4 | G175: SEMESTRAL | H175: $15,075,000 | I175: 5.95% | J175: $15,972,000
B176: MDCON | C176: MAESTRÍA EN DERECHO CONSTITUCIONAL | D176: Admitidos a partir del año 2026 | E176: 104844 | F176: 4 | G176: SEMESTRAL | H176: $15,075,000 | I176: 6.51% | J176: =+ROUND((H176*I176)+H176,-3) -> $16,056,000
B177: MDSEG | C177: MAESTRÍA EN DERECHO DE SEGUROS | D177: Admitidos hasta el año 2025 | E177: 1023 | F177: 3 | G177: SEMESTRAL | H177: $15,097,000 | I177: 5.95% | J177: $15,995,000
B178: MDSEG | C178: MAESTRÍA EN DERECHO DE SEGUROS | D178: Admitidos a partir del año 2026 | E178: 1023 | F178: 3 | G178: SEMESTRAL | H178: $15,097,000 | I178: 6.51% | J178: =+ROUND((H178*I178)+H178,-3) -> $16,080,000
B179: MDER | C179: MAESTRÍA EN DERECHO ECONÓMICO | D179: Admitidos hasta el año 2024 | E179: 1026 | F179: 4 | G179: SEMESTRAL | H179: $16,940,000 | I179: 5.95% | J179: $17,948,000
B180: MDER | C180: MAESTRÍA EN DERECHO ECONÓMICO | D180: Admitidos durante el año 2025 | E180: 1026 | F180: 4 | G180: SEMESTRAL | H180: $17,101,000 | I180: 5.95% | J180: $18,119,000
B181: MDER | C181: MAESTRÍA EN DERECHO ECONÓMICO | D181: Admitidos a partir del año 2026 | E181: 1026 | F181: 4 | G181: SEMESTRAL | H181: $17,101,000 | I181: 6.51% | J181: =+ROUND((H181*I181)+H181,-3) -> $18,214,000
B182: MDLSS | C182: MAESTRÍA EN DERECHO LABORAL Y DE LA SEGURIDAD SOCIAL | D182: Admitidos hasta el año 2023 | E182: 107006 | F182: 4 | G182: SEMESTRAL | H182: $13,440,000 | I182: 5.95% | J182: $14,240,000
B183: MDLSS | C183: MAESTRÍA EN DERECHO LABORAL Y DE LA SEGURIDAD SOCIAL | D183: Admitidos durante el año 2024 | E183: 107006 | F183: 4 | G183: SEMESTRAL | H183: $13,562,000 | I183: 5.95% | J183: =+ROUND((H183*I183)+H183,-3) -> $14,369,000
B184: MDLSS | C184: MAESTRÍA EN DERECHO LABORAL Y DE LA SEGURIDAD SOCIAL | D184: Admitidos durante el año 2025 | E184: 107006 | F184: 4 | G184: SEMESTRAL | H184: $13,691,000 | I184: 5.95% | J184: $14,506,000
B185: MDLSS | C185: MAESTRÍA EN DERECHO LABORAL Y DE LA SEGURIDAD SOCIAL | D185: Admitidos a partir del año 2026 | E185: 107006 | F185: 4 | G185: SEMESTRAL | H185: $13,691,000 | I185: 6.51% | J185: =+ROUND((H185*I185)+H185,-3) -> $14,582,000
C187: CIENCIAS POLIT. Y REL. INTERNACIONALES
B188: GGPT | C188: ESPECIALIZACIÓN EN GOBIERNO Y GESTIÓN PÚBLICA TERRITORIALES | D188: Admitidos hasta el año 2025 | E188: 53060 | F188: 2 | G188: SEMESTRAL | H188: $16,101,000 | I188: 5.95% | J188: =+ROUND((H188*I188)+H188,-3) -> $17,059,000
B189: GGPT | C189: ESPECIALIZACIÓN EN GOBIERNO Y GESTIÓN PÚBLICA TERRITORIALES | D189: Admitidos a partir del año 2026 | E189: 53060 | F189: 2 | G189: SEMESTRAL | H189: $16,101,000 | I189: 6.51% | J189: =+ROUND((H189*I189)+H189,-3) -> $17,149,000
B190: GGPTB | C190: ESPECIALIZACIÓN EN GOBIERNO Y GESTIÓN PÚBLICA TERRITORIALES | D190: Admitidos hasta el año 2024 | E190: 105147 | F190: 2 | G190: SEMESTRAL | H190: $13,037,000 | I190: 5.95% | J190: $13,813,000
B191: GGPTB | C191: ESPECIALIZACIÓN EN GOBIERNO Y GESTIÓN PÚBLICA TERRITORIALES | D191: Admitidos durante el año 2025 | E191: 105147 | F191: 2 | G191: SEMESTRAL | H191: $13,161,000 | I191: 5.95% | J191: $13,944,000
B192: GGPTB | C192: ESPECIALIZACIÓN EN GOBIERNO Y GESTIÓN PÚBLICA TERRITORIALES | D192: Admitidos a partir del año 2026 | E192: 105147 | F192: 2 | G192: SEMESTRAL | H192: $13,161,000 | I192: 6.51% | J192: =+ROUND((H192*I192)+H192,-3) -> $14,018,000
B193: EOPMP | C193: ESPECIALIZACIÓN EN OPINIÓN PÚBLICA Y MERCADEO POLÍTICO | D193: Admitidos hasta el año 2026 | E193: 2840 | F193: 2 | G193: SEMESTRAL | H193: $15,902,000 | I193: 6.51% | J193: =+ROUND((H193*I193)+H193,-3) -> $16,937,000
B194: RCON | C194: ESPECIALIZACIÓN EN RESOLUCIÓN DE CONFLICTOS | D194: Admitidos hasta el año 2025 | E194: 3268 | F194: 2 | G194: SEMESTRAL | H194: $15,902,000 | I194: 5.95% | J194: $16,848,000
B195: RCON | C195: ESPECIALIZACIÓN EN RESOLUCIÓN DE CONFLICTOS | D195: Admitidos a partir del año 2026 | E195: 3268 | F195: 2 | G195: SEMESTRAL | H195: $15,902,000 | I195: 6.51% | J195: =+ROUND((H195*I195)+H195,-3) -> $16,937,000
B196: MELAT | C196: MAESTRÍA EN ESTUDIOS CONTEMPORÁNEOS DE AMÉRICA LATINA | D196: Admitidos hasta el año 2026 | E196: 105996 | F196: 4 | G196: SEMESTRAL | H196: $16,071,000 | I196: 6.51% | J196: =+ROUND((H196*I196)+H196,-3) -> $17,117,000
B197: MEPRC | C197: MAESTRÍA EN ESTUDIOS DE PAZ Y RESOLUCIÓN DE CONFLICTOS | D197: Admitidos hasta el año 2023 | E197: 104367 | F197: 4 | G197: SEMESTRAL | H197: $16,789,000 | I197: 5.95% | J197: $17,788,000
B198: MEPRC | C198: MAESTRÍA EN ESTUDIOS DE PAZ Y RESOLUCIÓN DE CONFLICTOS | D198: Admitidos durante el año 2024 | E198: 104367 | F198: 4 | G198: SEMESTRAL | H198: $16,940,000 | I198: 5.95% | J198: $17,948,000
B199: MEPRC | C199: MAESTRÍA EN ESTUDIOS DE PAZ Y RESOLUCIÓN DE CONFLICTOS | D199: Admitidos durante el año 2025 | E199: 104367 | F199: 4 | G199: SEMESTRAL | H199: $17,101,000 | I199: 5.95% | J199: $18,119,000
B200: MEPRC | C200: MAESTRÍA EN ESTUDIOS DE PAZ Y RESOLUCIÓN DE CONFLICTOS | D200: Admitidos a partir del año 2026 | E200: 104367 | F200: 4 | G200: SEMESTRAL | H200: $17,101,000 | I200: 6.51% | J200: =+ROUND((H200*I200)+H200,-3) -> $18,214,000
B201: MREL | C201: MAESTRÍA EN ESTUDIOS INTERNACIONALES | D201: Admitidos hasta el año 2023 | E201: 107713 | F201: 3 | G201: SEMESTRAL | H201: $15,778,000 | I201: 5.95% | J201: $16,717,000
B202: MREL | C202: MAESTRÍA EN ESTUDIOS INTERNACIONALES | D202: Admitidos durante el año 2024 | E202: 107713 | F202: 3 | G202: SEMESTRAL | H202: $15,920,000 | I202: 5.95% | J202: $16,867,000
B203: MREL | C203: MAESTRÍA EN ESTUDIOS INTERNACIONALES | D203: Admitidos durante el año 2025 | E203: 107713 | F203: 3 | G203: SEMESTRAL | H203: $16,071,000 | I203: 5.95% | J203: $17,027,000
B204: MREL | C204: MAESTRÍA EN ESTUDIOS INTERNACIONALES | D204: Admitidos a partir del año 2026 | E204: 107713 | F204: 3 | G204: SEMESTRAL | H204: $16,071,000 | I204: 6.51% | J204: =+ROUND((H204*I204)+H204,-3) -> $17,117,000
B205: MESTP | C205: MAESTRÍA EN ESTUDIOS POLÍTICOS | D205: Admitidos hasta el año 2023 | E205: 1020 | F205: 4 | G205: SEMESTRAL | H205: $16,789,000 | I205: 5.95% | J205: $17,788,000
B206: MESTP | C206: MAESTRÍA EN ESTUDIOS POLÍTICOS | D206: Admitidos durante el año 2024 | E206: 1020 | F206: 4 | G206: SEMESTRAL | H206: $16,940,000 | I206: 5.95% | J206: $17,948,000
B207: MESTP | C207: MAESTRÍA EN ESTUDIOS POLÍTICOS | D207: Admitidos durante el año 2025 | E207: 1020 | F207: 4 | G207: SEMESTRAL | H207: $17,101,000 | I207: 5.95% | J207: $18,119,000
B208: MESTP | C208: MAESTRÍA EN ESTUDIOS POLÍTICOS | D208: Admitidos a partir del año 2026 | E208: 1020 | F208: 4 | G208: SEMESTRAL | H208: $17,101,000 | I208: 6.51% | J208: =+ROUND((H208*I208)+H208,-3) -> $18,214,000
B209: MGTGP | C209: MAESTRÍA EN GOBIERNO DEL TERRITORIO Y GESTIÓN PÚBLICA | D209: Admitidos hasta el año 2023 | E209: 105251 | F209: 4 | G209: SEMESTRAL | H209: $16,998,000 | I209: 5.95% | J209: $18,009,000
B210: MGTGP | C210: MAESTRÍA EN GOBIERNO DEL TERRITORIO Y GESTIÓN PÚBLICA | D210: Admitidos durante el año 2024 | E210: 105251 | F210: 4 | G210: SEMESTRAL | H210: $17,152,000 | I210: 5.95% | J210: $18,173,000
B211: MGTGP | C211: MAESTRÍA EN GOBIERNO DEL TERRITORIO Y GESTIÓN PÚBLICA | D211: Admitidos durante el año 2025 | E211: 105251 | F211: 4 | G211: SEMESTRAL | H211: $17,315,000 | I211: 5.95% | J211: $18,345,000
B212: MGTGP | C212: MAESTRÍA EN GOBIERNO DEL TERRITORIO Y GESTIÓN PÚBLICA | D212: Admitidos a partir del año 2026 | E212: 105251 | F212: 4 | G212: SEMESTRAL | H212: $17,315,000 | I212: 6.51% | J212: =+ROUND((H212*I212)+H212,-3) -> $18,442,000
B213: MPSOC | C213: MAESTRÍA EN POLÍTICA SOCIAL | D213: Admitidos hasta el año 2023 | E213: 17477 | F213: 3 | G213: SEMESTRAL | H213: $16,789,000 | I213: 5.95% | J213: $17,788,000
B214: MPSOC | C214: MAESTRÍA EN POLÍTICA SOCIAL | D214: Admitidos durante el año 2024 | E214: 17477 | F214: 3 | G214: SEMESTRAL | H214: $16,940,000 | I214: 5.95% | J214: $17,948,000
... 424 more rows

Sheet OtrosConceptos 2025_2026
A2: Volver al menú
B3: PONTIFICIA UNIVERSIDAD JAVERIANA - SEDE CENTRAL
B4: Otros Conceptos 2025-2026
B7: CONCEPTO | C7: Tarifa 2025 | D7: Incremento | E7: Tarifa 2026
B8: Derechos de Inscripción Pregrado y Posgrado | C8: $130,000 | D8: 5.51% | E8: $137,000
B9: Carné (duplicado) | C9: $48,000 | D9: 5.51% | E9: $51,000
B10: Certificación de planes de estudio y programas de asignaturas | C10: $99,000 | D10: 5.51% | E10: $104,000
B11: Certificaciones, constancias y copias actas de grado | C11: $50,000 | D11: 5.51% | E11: $53,000
B12: Evaluación supletoria | C12: $200,000 | D12: 5.51% | E12: $211,000
B13: Validación de asignaturas | C13: $582,000 | D13: 5.51% | E13: $614,000
B14: Preparatorio (repetición de examen o primer examen preparatorio de estudiante que incumplió) | C14: $189,000 | D14: 5.51% | E14: $199,000
B15: Examen de Clasificación en lengua extranjera por segunda vez | C15: $70,000 | D15: 5.51% | E15: $74,000
B16: Derechos de grado | C16: $814,000 | D16: 5.51% | E16: $859,000
B17: Diploma de grado (original o copia) en español o en latín | C17: $251,000 | D17: 5.51% | E17: $265,000
B18: Traducción de diplomas del latín | C18: $79,000 | D18: 5.51% | E18: $83,000
B21: COSTOS ESPECÍFICOS POR PROGRAMA O FACULTAD
B23: Facultad de Ciencias Económicas
B24: CONCEPTO | C24: Tarifa 2025 | D24: Incremento | E24: Tarifa 2026
B25: Derechos de Inscripción Maestría en Administración - MADME | C25: $547,000 | D25: 5.51% | E25: $577,000
B26: Derechos de Inscripción Maestría en Administración - MADMI | C26: $332,000 | D26: 5.51% | E26: $350,000
B28: Instituto de Bioética
B29: CONCEPTO | C29: Tarifa 2025 | D29: Incremento | E29: Tarifa 2026
B30: Servicio de cursos especiales (tutoriales) para estudiantes de la Universidad | C30: $1,171,000 | D30: 5.51% | E30: $1,236,000
B32: Facultad de Filosofía
B33: CONCEPTO | C33: Tarifa 2025 | D33: Incremento | E33: Tarifa 2026
B34: Derechos de grado - Seminaristas Venezuela | C34: $251,000 | D34: 5.51% | E34: $265,000
B36: Facultad de Medicina - Preuniversitario
B37: CONCEPTO | C37: Tarifa 2025 | D37: Incremento | E37: Tarifa 2026
B38: Derechos de Inscripción Premédico | C38: $94,000 | D38: 5.51% | E38: $99,000
B40: Facultad de Odontología
B41: CONCEPTO | C41: Tarifa 2025 | D41: Incremento | E41: Tarifa 2026
B42: Derechos de Inscripción Técnico Laboral en Auxiliar en Odontología | C42: $105,000 | D42: 5.51% | E42: $111,000
B43: Derechos de grado - Técnico Laboral en Auxiliar en Odontología | C43: $251,000 | D43: 5.51% | E43: $265,000
B44: Certificación (Diploma) - Técnico Laboral en Auxiliar en Odontología | C44: $83,000 | D44: 5.51% | E44: $88,000
B45: Copia Certificación Acta- Técnico Laboral en Auxiliar en Odontología | C45: $50,000 | D45: 5.51% | E45: $53,000
B48: Facultad de Teología
B49: PROGRAMA DE LICENCIATURA EN CIENCIAS RELIGIOSAS - VIRTUAL | C49: Tarifa 2025 | D49: Incremento | E49: Tarifa 2026
B50: Derechos de grados | C50: $474,000 | D50: 5.51% | E50: $500,000
B51: Evaluación supletoria | C51: $124,000 | D51: 5.51% | E51: $131,000
B54: Facultad de Medicina - Posgrado
B55: CONCEPTO | C55: Tarifa 2025 | D55: Incremento | E55: Tarifa 2026
B56: Copia Certificad Educ Continua | C56: $34,000 | D56: 5.51% | E56: $36,000
